{"text_format":"3","workbook":"xlsx","n_sheets":5,"sheets":["Validation Summary","Data","Historic Data","Look-up","Comments"],"not_rendered":{"defined_names":1},"read":"whole","date_system":"1900"}

{"sheet":"Validation Summary","index":0,"n_rows":172,"n_cols":25,"rows_kept":172,"merged":[[1,1,1,2],[2,1,2,2],[6,9,6,13],[17,9,17,13],[31,9,31,13],[43,9,43,12],[44,9,44,12],[46,9,46,13],[62,2,62,4],[63,2,63,4],[64,2,64,4],[65,2,65,4],[70,9,70,12],[71,9,71,12],[75,4,75,10],[84,2,84,4],[86,4,86,13],[98,4,98,13],[100,4,100,13],[102,4,102,13],[104,4,104,13],[109,6,109,7],[109,9,109,10],[110,6,110,7],[110,9,110,10],[110,14,110,20],[114,6,114,7],[114,9,114,10],[114,14,114,20],[115,6,115,7],[115,9,115,10],[115,14,115,20],[116,6,116,7],[116,9,116,10],[116,14,116,20],[117,6,117,7],[117,9,117,10],[117,14,117,20],[118,6,118,7],[118,9,118,10],[118,14,118,20],[119,6,119,7],[119,9,119,10],[119,14,119,20],[120,6,120,7],[120,9,120,10],[120,14,120,20],[121,6,121,7],[121,9,121,10],[121,14,121,20],[122,6,122,7],[122,9,122,10],[122,14,122,20],[123,6,123,7],[123,9,123,10],[123,14,123,20],[124,6,124,7],[124,9,124,10],[124,14,124,20],[125,6,125,7],[125,9,125,10],[125,14,125,20],[126,6,126,7],[126,9,126,10],[126,14,126,20],[127,6,127,7],[127,9,127,10],[127,14,127,20],[128,6,128,7],[128,9,128,10],[128,14,128,20],[131,6,131,7],[131,9,131,10],[131,14,131,20],[132,6,132,7],[132,9,132,10],[132,14,132,20],[133,6,133,7],[133,9,133,10],[133,14,133,20],[134,6,134,7],[134,9,134,10],[134,14,134,20],[135,6,135,7],[135,9,135,10],[135,14,135,20],[136,6,136,7],[136,9,136,10],[136,14,136,20],[137,6,137,7],[137,9,137,10],[137,14,137,20],[138,6,138,7],[138,9,138,10],[138,14,138,20],[139,6,139,7],[139,9,139,10],[139,14,139,20],[140,6,140,7],[140,9,140,10],[140,14,140,20],[143,6,143,7],[143,9,143,10],[143,14,143,20],[144,6,144,7],[144,9,144,10],[144,14,144,20],[145,6,145,7],[145,9,145,10],[145,14,145,20],[146,6,146,7],[146,9,146,10],[146,14,146,20],[147,6,147,7],[147,9,147,10],[147,14,147,20],[148,6,148,7],[148,9,148,10],[148,14,148,20],[149,6,149,7],[149,9,149,10],[149,14,149,20],[152,6,152,7],[152,9,152,10],[152,14,152,20],[153,6,153,7],[153,9,153,10],[153,14,153,20],[154,6,154,7],[154,9,154,10],[154,14,154,20],[155,6,155,7],[155,9,155,10],[155,14,155,20],[156,6,156,7],[156,9,156,10],[156,14,156,20],[157,6,157,7],[157,9,157,10],[157,14,157,20],[158,6,158,7],[158,9,158,10],[158,14,158,20],[159,6,159,7],[159,9,159,10],[159,14,159,20],[160,6,160,7],[160,9,160,10],[160,14,160,20],[161,6,161,7],[161,9,161,10],[161,14,161,20],[165,6,165,7],[165,9,165,10],[165,14,165,20],[166,6,166,7],[166,9,166,10],[166,14,166,20],[167,6,167,7],[167,9,167,10],[167,14,167,20],[168,6,168,7],[168,9,168,10],[168,14,168,20],[169,6,169,7],[169,9,169,10],[169,14,169,20],[170,6,170,7],[170,9,170,10],[170,14,170,20],[171,6,171,7],[171,9,171,10],[171,14,171,20]]}
[]
[null,"Authority",null,{"$f":"Data!B2","v":"Hastings Borough Council"},{"$nulls":5},"v4"]
[null,"Quarter",null,{"$f":"VLOOKUP(Data!C2,Quarter,3,0)","v":"Oct 20 - Dec 20"}]
[]
[null,"Incidents"]
[]
[null,"I0101","Total number of incidents this period",{"$nulls":3},{"$f":"SUMIF(Data!$F$2:$F$232,B7,Data!$H$2:$H$232)","v":132}]
[]
[]
[null,null,"Number of incidents by land type"]
[]
[null,"I0201","Highway",{"$nulls":3},{"$f":"SUMIF(Data!$F$2:$F$232,B12,Data!$H$2:$H$232)","v":116},null,"I0202","Agriculture",{"$nulls":3},{"$f":"SUMIF(Data!$F$2:$F$232,I12,Data!$H$2:$H$232)","v":0}]
[null,"I0301","Footpath / Bridleway",{"$nulls":3},{"$f":"SUMIF(Data!$F$2:$F$232,B13,Data!$H$2:$H$232)","v":11},null,"I0302","Private Residence",{"$nulls":3},{"$f":"SUMIF(Data!$F$2:$F$232,I13,Data!$H$2:$H$232)","v":0}]
[null,"I0401","Back Alley",{"$nulls":3},{"$f":"SUMIF(Data!$F$2:$F$232,B14,Data!$H$2:$H$232)","v":3},null,"I0402","Commercial / Industrial",{"$nulls":3},{"$f":"SUMIF(Data!$F$2:$F$232,I14,Data!$H$2:$H$232)","v":0}]
[null,"I0501","Railway",{"$nulls":3},{"$f":"SUMIF(Data!$F$2:$F$232,B15,Data!$H$2:$H$232)","v":0},null,"I0502","Water course / bank",{"$nulls":3},{"$f":"SUMIF(Data!$F$2:$F$232,I15,Data!$H$2:$H$232)","v":0}]
[null,"I0601","Council Land",{"$nulls":3},{"$f":"SUMIF(Data!$F$2:$F$232,B16,Data!$H$2:$H$232)","v":1},null,"I0602","Other (unidentified)",{"$nulls":3},{"$f":"SUMIF(Data!$F$2:$F$232,I16,Data!$H$2:$H$232)","v":1}]
[]
[null,null,"Sum of incidents by land type",{"$nulls":3},{"$f":"SUM(G12:G16,N12:N16)","v":132},{"$f":"IF(G18=G7,\"OK\",\"Check\")","v":"OK"},null,{"$f":"IF(H18=\"Check\",\"The total number of incidents recorded in this part does not match the total number given in the first part of the incidents section.\",\"\")","v":""}]
[]
[]
[null,null,"Number of incidents by primary waste type"]
[]
[null,"I0701","Animal Carcass",{"$nulls":3},{"$f":"SUMIF(Data!$F$2:$F$232,B23,Data!$H$2:$H$232)","v":0},null,"I0702","Construction / demolition / excavation",{"$nulls":3},{"$f":"SUMIF(Data!$F$2:$F$232,I23,Data!$H$2:$H$232)","v":8}]
[null,"I0801","Green",{"$nulls":3},{"$f":"SUMIF(Data!$F$2:$F$232,B24,Data!$H$2:$H$232)","v":2},null,"I0802","Black bags - commercial",{"$nulls":3},{"$f":"SUMIF(Data!$F$2:$F$232,I24,Data!$H$2:$H$232)","v":0}]
[null,"I0901","Vehicle Parts",{"$nulls":3},{"$f":"SUMIF(Data!$F$2:$F$232,B25,Data!$H$2:$H$232)","v":0},null,"I0902","Black bags - household",{"$nulls":3},{"$f":"SUMIF(Data!$F$2:$F$232,I25,Data!$H$2:$H$232)","v":0}]
[null,"I1001","White goods",{"$nulls":3},{"$f":"SUMIF(Data!$F$2:$F$232,B26,Data!$H$2:$H$232)","v":11},null,"I1002","Chemical drums, oil, fuel",{"$nulls":3},{"$f":"SUMIF(Data!$F$2:$F$232,I26,Data!$H$2:$H$232)","v":1}]
[null,"I1101","Other electrical",{"$nulls":3},{"$f":"SUMIF(Data!$F$2:$F$232,B27,Data!$H$2:$H$232)","v":4},null,"I1102","Other household waste",{"$nulls":3},{"$f":"SUMIF(Data!$F$2:$F$232,I27,Data!$H$2:$H$232)","v":102}]
[null,"I1201","Tyres",{"$nulls":3},{"$f":"SUMIF(Data!$F$2:$F$232,B28,Data!$H$2:$H$232)","v":1},null,"I1202","Other commercial waste",{"$nulls":3},{"$f":"SUMIF(Data!$F$2:$F$232,I28,Data!$H$2:$H$232)","v":3}]
[null,"I1301","Asbestos",{"$nulls":3},{"$f":"SUMIF(Data!$F$2:$F$232,B29,Data!$H$2:$H$232)","v":0},null,"I1302","Other (unidentified)",{"$nulls":3},{"$f":"SUMIF(Data!$F$2:$F$232,I29,Data!$H$2:$H$232)","v":0}]
[null,"I1401","Clinical",{"$nulls":3},{"$f":"SUMIF(Data!$F$2:$F$232,B30,Data!$H$2:$H$232)","v":0}]
[]
[null,null,"Sum of incidents by primary waste type",{"$nulls":3},{"$f":"SUM(G23:G30,N23:N29)","v":132},{"$f":"IF(G32=G7,\"OK\",\"Check\")","v":"OK"},null,{"$f":"IF(H32=\"Check\",\"The total number of incidents recorded in this part does not match the total number given in the first part of the incidents section.\",\"\")","v":""}]
[]
[]
[null,null,"Number of incidents by size and estimated clearance and disposal cost"]
[]
[{"$nulls":6},"Incidents",null,null,"At (£) each",{"$nulls":3},"Total (£)"]
[]
[null,"I1501","Single black bag",{"$nulls":3},{"$f":"SUMIF(Data!$F$2:$F$232,B39,Data!$H$2:$H$232)","v":0},null,"I1502",{"$f":"VLOOKUP(I39,Data!$F:$H,3,FALSE)","v":{"v":7,"d":"£7"}},{"$nulls":3},{"$f":"G39*J39","v":0}]
[null,"I1601","Other single item",{"$nulls":3},{"$f":"SUMIF(Data!$F$2:$F$232,B40,Data!$H$2:$H$232)","v":63},null,"I1602",{"$f":"VLOOKUP(I40,Data!$F:$H,3,FALSE)","v":{"v":29,"d":"£29"}},{"$nulls":3},{"v":1827,"d":"£1,827"}]
[null,"I1701","Car boot load or less",{"$nulls":3},{"$f":"SUMIF(Data!$F$2:$F$232,B41,Data!$H$2:$H$232)","v":44},null,"I1702",{"$f":"VLOOKUP(I41,Data!$F:$H,3,FALSE)","v":{"v":29,"d":"£29"}},{"$nulls":3},{"v":1276,"d":"£1,276"}]
[null,"I1801","Small van load",{"$nulls":3},{"$f":"SUMIF(Data!$F$2:$F$232,B42,Data!$H$2:$H$232)","v":25},null,"I1802",{"$f":"VLOOKUP(I42,Data!$F:$H,3,FALSE)","v":{"v":56,"d":"£56"}},{"$nulls":3},{"v":1400,"d":"£1,400"}]
[null,"I1901","Transit van load",{"$nulls":3},{"$f":"SUMIF(Data!$F$2:$F$232,B43,Data!$H$2:$H$232)","v":0},null,"I1902",{"$f":"VLOOKUP(I43,Data!$F:$H,3,FALSE)","v":{"v":115,"d":"£115"}},{"$nulls":3},0]
[null,"I2001","Tipper lorry  load",{"$nulls":3},{"$f":"SUMIF(Data!$F$2:$F$232,B44,Data!$H$2:$H$232)","v":0},{"$f":"IF(OR(AND(G44=0,N44=0),AND(G44>0,N44>0)),\"OK\",\"Check\")","v":"OK"},"I2002",{"$f":"IF(H44=\"Check\", \"If you have entered an incident or incidents against the tipper lorry load category, you should also enter the associated clearance costs.  If the clearance cost is £0.00, please provide a reason.\",\"\")","v":""},{"$nulls":3},{"$f":"SUMIF(Data!$F$2:$F$232,I44,Data!$H$2:$H$232)","v":0}]
[null,"I2101","Significant / multiple loads",{"$nulls":3},{"$f":"SUMIF(Data!$F$2:$F$232,B45,Data!$H$2:$H$232)","v":0},"OK","I2102",{"$f":"IF(H45=\"Check\", \"If you have entered an incident or incidents against the significant/multiple loads, you should also enter the associated clearance costs.  If the clearance cost is £0.00, please provide a reason.\",\"\")","v":""},{"$nulls":3},{"$f":"SUMIF(Data!$F$2:$F$232,I45,Data!$H$2:$H$232)","v":0}]
[]
[null,null,"Sum of incidents by cost",{"$nulls":3},{"$f":"SUM(G39:G45)","v":132},{"$f":"IF(G47<=G7,\"OK\",\"Check\")","v":"OK"},null,{"$f":"IF(H47=\"Check\",CONCATENATE(\"The total number of incidents in this section (\", G47, \") cannot be more than the total number of incidents given in the first section of your return (\", G7, \").  Please check these figures.\"), \"\")","v":""}]
[]
[{"$nulls":12},"Estimated Total Cost (£)",{"$f":"SUM(N39:N45)","v":{"v":4503,"d":"£4,503"}}]
[]
[]
[null,"Actions Taken"]
[]
[null,null,"Number and estimated cost of actions taken this period"]
[]
[null,null,"No actions taken this period?",{"$nulls":3},{"$f":"IF(H56=1,\"ü\",\"\")","v":""},{"$f":"SUMIF(Data!$F$2:$F$232,I56,Data!$H$2:$H$232)","v":0},"A2001"]
[]
[{"$nulls":6},"Actions",null,null,"At (£) each",{"$nulls":3},"Total (£)"]
[]
[null,"A0101","Investigation",{"$nulls":3},{"$f":"SUMIF(Data!$F$2:$F$232,B60,Data!$H$2:$H$232)","v":5},null,"A0102",{"$f":"VLOOKUP(I60,Data!$F:$H,3,FALSE)","v":{"v":33,"d":"£33"}},{"$nulls":3},{"$f":"G60*J60","v":{"v":165,"d":"£165"}}]
[null,"A0201","Warning letter",{"$nulls":3},{"$f":"SUMIF(Data!$F$2:$F$232,B61,Data!$H$2:$H$232)","v":0},null,"A0202",{"$f":"VLOOKUP(I61,Data!$F:$H,3,FALSE)","v":{"v":33,"d":"£33"}},{"$nulls":3},0]
[null,"A0301","Statutory notice",{"$nulls":3},{"$f":"SUMIF(Data!$F$2:$F$232,B62,Data!$H$2:$H$232)","v":0},null,"A0302",{"$f":"VLOOKUP(I62,Data!$F:$H,3,FALSE)","v":{"v":33,"d":"£33"}},{"$nulls":3},0]
[null,"A2101","Fixed penalty notices issued specifically for fly-tipping (s33Za of the Environmental Protection Act 1990)",{"$nulls":3},{"$f":"SUMIF(Data!$F$2:$F$232,B63,Data!$H$2:$H$232)","v":0},null,"A2102",{"$f":"VLOOKUP(I63,Data!$F:$H,3,FALSE)","v":{"v":33,"d":"£33"}},{"$nulls":3},0]
[null,"A2401","Fixed penalty notices issued for Household Duty of Care",{"$nulls":3},{"$f":"SUMIF(Data!$F$2:$F$232,B64,Data!$H$2:$H$232)","v":0},null,"A2402",{"$f":"VLOOKUP(I64,Data!$F:$H,3,FALSE)","v":{"v":33,"d":"£33"}},{"$nulls":3},0]
[null,"A2201","Littering fixed penalty notices issued in conjunction with fly-tipping (s88 of the Environmental Protection Act 1990)",{"$nulls":3},{"$f":"SUMIF(Data!$F$2:$F$232,B65,Data!$H$2:$H$232)","v":0},null,"A2202",{"$f":"VLOOKUP(I65,Data!$F:$H,3,FALSE)","v":{"v":33,"d":"£33"}},{"$nulls":3},0]
[null,"A2301","All other fixed penalty notices issued",{"$nulls":3},{"$f":"SUMIF(Data!$F$2:$F$232,B66,Data!$H$2:$H$232)","v":0},null,"A2302",{"$f":"VLOOKUP(I66,Data!$F:$H,3,FALSE)","v":{"v":33,"d":"£33"}},{"$nulls":3},0]
[null,"A0501","Duty of care inspection",{"$nulls":3},{"$f":"SUMIF(Data!$F$2:$F$232,B67,Data!$H$2:$H$232)","v":0},null,"A0502",{"$f":"VLOOKUP(I67,Data!$F:$H,3,FALSE)","v":{"v":33,"d":"£33"}},{"$nulls":3},0]
[null,"A0601","Stop and search",{"$nulls":3},{"$f":"SUMIF(Data!$F$2:$F$232,B68,Data!$H$2:$H$232)","v":0},null,"A0602",{"$f":"VLOOKUP(I68,Data!$F:$H,3,FALSE)","v":{"v":324,"d":"£324"}},{"$nulls":3},0]
[null,"A0701","Vehicles seized",{"$nulls":3},{"$f":"SUMIF(Data!$F$2:$F$232,B69,Data!$H$2:$H$232)","v":0},{"$f":"IF(G69<=10,\"OK\",\"Check\")","v":"OK"},"A0702",{"$f":"VLOOKUP(I69,Data!$F:$H,3,FALSE)","v":{"v":33,"d":"£33"}},{"$nulls":3},0]
[null,"A0801","Formal caution",{"$nulls":3},{"$f":"SUMIF(Data!$F$2:$F$232,B70,Data!$H$2:$H$232)","v":0},null,"A0802",{"$f":"VLOOKUP(I70,Data!$F:$H,3,FALSE)","v":{"v":33,"d":"£33"}},{"$nulls":3},0]
[null,"A0901","Prosecution",{"$nulls":3},{"$f":"SUMIF(Data!$F$2:$F$232,B71,Data!$H$2:$H$232)","v":0},{"$f":"IF(OR(AND(G71=0,N71=0),AND(G71>0,N71>0)),\"OK\",\"Check\")","v":"OK"},"A0902",{"$f":"IF(H71=\"Check\", \"If you have entered actions for the number of prosecutions, you should also enter the associated costs relating to these prosecutions.\",\"\")","v":""},{"$nulls":3},{"$f":"SUMIF(Data!$F$2:$F$232,I71,Data!$H$2:$H$232)","v":0}]
[null,"A1001","Injunction",{"$nulls":3},{"$f":"SUMIF(Data!$F$2:$F$232,B72,Data!$H$2:$H$232)","v":0},"OK","A1002",{"$f":"IF(H72=\"Check\", \"If you have entered actions for the number of injunctions, you should also enter the associated costs relating to these injunctions.\",\"\")","v":""},{"$nulls":3},{"$f":"SUMIF(Data!$F$2:$F$232,I72,Data!$H$2:$H$232)","v":0}]
[]
[null,null,{"$f":"IF(H69=\"Check\",\"The number of vehicles seized is high. If you wish to provide any further information about this figure please do so in the Comments box of the data entry section of your online return.\",\"\")","v":""}]
[{"$nulls":12},"Estimated Total Cost (£)",{"$f":"SUM(N60:N72)","v":{"v":165,"d":"£165"}}]
[null,null,{"$f":"IF(G7=0, \"CHECK\", IF(G60/G7>1.1,\"CHECK\",\"OK\"))","v":"OK"},null,{"$f":"IF(C76=\"Check\",\"The total number of investigations (\"&G60&\")  is more than 10% greater than the total number of incidents recorded (\"&G7&\").  We would not usually expect this to be the case.  If you are able to provide any further information about this figure please do so in the Comments box of the data entry section of your online return.\",\"\")","v":""}]
[]
[]
[]
[null,null,"Number of prosecution outcomes"]
[]
[null,"A1101","Absolute/conditional discharge",{"$nulls":3},{"$f":"SUMIF(Data!$F$2:$F$232,B82,Data!$H$2:$H$232)","v":0},null,"A1102","Custodial sentence",{"$nulls":3},{"$f":"SUMIF(Data!$F$2:$F$232,I82,Data!$H$2:$H$232)","v":0}]
[null,"A1201","Community service",{"$nulls":3},{"$f":"SUMIF(Data!$F$2:$F$232,B83,Data!$H$2:$H$232)","v":0},null,"A1202","Cases Lost",{"$nulls":3},{"$f":"SUMIF(Data!$F$2:$F$232,I83,Data!$H$2:$H$232)","v":0}]
[null,"A1301","Fine",{"$nulls":3},{"$f":"SUMIF(Data!$F$2:$F$232,B84,Data!$H$2:$H$232)","v":0},null,"A1302","Other (successful)",{"$nulls":3},{"$f":"SUMIF(Data!$F$2:$F$232,I84,Data!$H$2:$H$232)","v":0}]
[null,"A1401","Paid fixed penalty notice",{"$nulls":3},{"$f":"SUMIF(Data!$F$2:$F$232,B85,Data!$H$2:$H$232)","v":0}]
[]
[null,null,{"$f":"IF(SUM(G82:G84,N82:N84)=G71,\"OK\",\"CHECK\")","v":"OK"},null,{"$f":"IF(C87=\"Check\",\"The total number of prosecution outcomes (excluding paid fixed penalty notices) is different from the number of prosecutions recorded in the \"&\"\"\"\"&\"Actions Taken\"&\"\"\"\"&\" section above.  If you are able to provide any further information about this figure please do so in the Comments box of the data entry section of your online return.\",\"\")","v":""}]
[]
[]
[null,null,"Number of fines by level (excluding costs and Fixed Penalty Notices)",{"$nulls":13},"Minimum total fines",{"$f":"0*G92+51*N92+201*G93+501*N93+1001*G94+5001*N94+20001*G95+50001*N95","v":0}]
[{"$nulls":16},"Maximum total fines",{"$f":"IF(N95<>0, \"Unknown\", 50*G92+200*N92+500*G93+1000*N93+5000*G94+20000*N94+50000*G95)","v":0}]
[null,"A1501","£0 to £50",{"$nulls":3},{"$f":"SUMIF(Data!$F$2:$F$232,B92,Data!$H$2:$H$232)","v":0},null,"A1502","£51 to £200",{"$nulls":3},{"$f":"SUMIF(Data!$F$2:$F$232,I92,Data!$H$2:$H$232)","v":0}]
[null,"A1601","£201 to £500",{"$nulls":3},{"$f":"SUMIF(Data!$F$2:$F$232,B93,Data!$H$2:$H$232)","v":0},null,"A1602","£501 to £1,000",{"$nulls":3},{"$f":"SUMIF(Data!$F$2:$F$232,I93,Data!$H$2:$H$232)","v":0}]
[null,"A1701","£1,001 to £5,000",{"$nulls":3},{"$f":"SUMIF(Data!$F$2:$F$232,B94,Data!$H$2:$H$232)","v":0},null,"A1702","£5,001 to £20,000",{"$nulls":3},{"$f":"SUMIF(Data!$F$2:$F$232,I94,Data!$H$2:$H$232)","v":0}]
[null,"A1801","£20,001 to £50,000",{"$nulls":3},{"$f":"SUMIF(Data!$F$2:$F$232,B95,Data!$H$2:$H$232)","v":0},null,"A1802","over £50,001",{"$nulls":3},{"$f":"SUMIF(Data!$F$2:$F$232,I95,Data!$H$2:$H$232)","v":0}]
[]
[{"$nulls":8},"A1901","Total fines this period (£)",{"$nulls":3},{"$f":"SUMIF(Data!$F$2:$F$232,I97,Data!$H$2:$H$232)","v":0}]
[]
[null,null,{"$f":"IF(N97>=R90, \"OK\", \"CHECK\")","v":"OK"},null,{"$f":"IF(C99=\"Check\",\"The \" & \"\"\"\" & \"Total fines this period (£)\" & \"\"\"\" & \" is lower than the minimum total (\" &TEXT(R90, \"£#,###\")&\") which results from the number of fines reported in the different levels in this section.  Please check these figures.  \",\"\")","v":""}]
[]
[null,null,{"$f":"IF(N95=0, \"OK\", IF(N97<=R91, \"OK\", \"CHECK\"))","v":"OK"},null,{"$f":"IF(C101=\"Check\",\"The \" & \"\"\"\" & \"Total fines this period (£)\" & \"\"\"\" & \" is higher than the maximum total (\" &TEXT(R91, \"£#,###\")&\") which results from the number of fines reported in the different levels in this section.  Please check these figures.  \",\"\")","v":""}]
[]
[null,null,{"$f":"IF(AND(SUM(G92:G95,N92:N95,N97)>0.1,SUM(G92:G95,N92:N95)=N97),\"CHECK\",\"OK\")","v":"OK"},null,{"$f":"IF(C103=\"Check\",\"The total value of fines this period (£) has been reported as the same as the number of fines made. The 'Total fines this period (£)' box should contain the cost of the fines rather than the number of fines made.\",\"\")","v":""}]
[]
[null,null,{"$f":"IF(AND(SUM(G92:G95,N92:N95)=0,N97>0),\"CHECK\",\"OK\")","v":"OK"},null,{"$f":"IF(C105=\"Check\",\"A value of fines this period (£\"&N97 &\") has been recorded. \"&\"However the number of fines by level recorded is 0? \"&\"We would expect at least one fine to be recorded by level in order for a monetary value to be recorded.\",\"\")","v":""}]
[]
[]
[null,"Checks to Historic Data"]
[]
[{"$nulls":6},{"$f":"D3","v":"Oct 20 - Dec 20"},null,null,{"$f":"VLOOKUP('Historic Data'!C2,Quarter,3,0)","v":"Oct 19 - Dec 19"},{"$nulls":13},"Threshold 1","Threshold 2"]
[null,"I0101","Total number of incidents",{"$nulls":3},{"$f":"SUMIF(Data!$F$2:$F$232,B111,Data!$H$2:$H$232)","v":132},null,null,{"$f":"SUMIF('Historic Data'!$F$2:$F$232,B111,'Historic Data'!$H$2:$H$232)","v":227},null,null,{"$f":"IF(AND(ABS(G111-J111)>X111*J111, ABS(G111-J111)>Y111), \"CHECK\", \"OK\")","v":"OK"},null,{"$f":"IF(M111=\"Check\",\"The total number of incidents recorded this quarter is somewhat different from the number of incidents in the same quarter of the previous year.  \"&\"If you are able to provide any further information about this figure please do so in the Comments box of the data entry section of your online return.\",\"\")","v":""},{"$nulls":8},{"v":0.5,"d":"50%"},100]
[]
[null,null,"Number of incidents by primary waste type"]
[]
[null,"I0701","Animal Carcass",{"$nulls":3},{"$f":"SUMIF(Data!$F$2:$F$232,B115,Data!$H$2:$H$232)","v":0},null,null,{"$f":"SUMIF('Historic Data'!$F$2:$F$232,B115,'Historic Data'!$H$2:$H$232)","v":0},null,null,{"$f":"IF(AND(ABS(G115-J115)>X115*J115, ABS(G115-J115)>Y115), \"CHECK\", \"OK\")","v":"OK"},null,{"$f":"IF(M115=\"Check\",\"If you are able to provide any further information about the change in this figure from the previous year please do so in the Comments box of the data entry section of your online return.\",\"\")","v":""},{"$nulls":8},{"v":2,"d":"200%"},40]
[null,"I0702","Construction / demolition / excavation",{"$nulls":3},{"$f":"SUMIF(Data!$F$2:$F$232,B116,Data!$H$2:$H$232)","v":8},null,null,{"$f":"SUMIF('Historic Data'!$F$2:$F$232,B116,'Historic Data'!$H$2:$H$232)","v":15},null,null,"OK",null,"",{"$nulls":8},{"v":2,"d":"200%"},40]
[null,"I0801","Green",{"$nulls":3},{"$f":"SUMIF(Data!$F$2:$F$232,B117,Data!$H$2:$H$232)","v":2},null,null,{"$f":"SUMIF('Historic Data'!$F$2:$F$232,B117,'Historic Data'!$H$2:$H$232)","v":9},null,null,"OK",null,"",{"$nulls":8},{"v":2,"d":"200%"},40]
[null,"I0802","Black bags - commercial",{"$nulls":3},{"$f":"SUMIF(Data!$F$2:$F$232,B118,Data!$H$2:$H$232)","v":0},null,null,{"$f":"SUMIF('Historic Data'!$F$2:$F$232,B118,'Historic Data'!$H$2:$H$232)","v":2},null,null,"OK",null,"",{"$nulls":8},{"v":2,"d":"200%"},40]
[null,"I0901","Vehicle Parts",{"$nulls":3},{"$f":"SUMIF(Data!$F$2:$F$232,B119,Data!$H$2:$H$232)","v":0},null,null,{"$f":"SUMIF('Historic Data'!$F$2:$F$232,B119,'Historic Data'!$H$2:$H$232)","v":0},null,null,"OK",null,"",{"$nulls":8},{"v":2,"d":"200%"},40]
[null,"I0902","Black bags - household",{"$nulls":3},{"$f":"SUMIF(Data!$F$2:$F$232,B120,Data!$H$2:$H$232)","v":0},null,null,{"$f":"SUMIF('Historic Data'!$F$2:$F$232,B120,'Historic Data'!$H$2:$H$232)","v":13},null,null,"OK",null,"",{"$nulls":8},{"v":2,"d":"200%"},40]
[null,"I1001","White goods",{"$nulls":3},{"$f":"SUMIF(Data!$F$2:$F$232,B121,Data!$H$2:$H$232)","v":11},null,null,{"$f":"SUMIF('Historic Data'!$F$2:$F$232,B121,'Historic Data'!$H$2:$H$232)","v":27},null,null,"OK",null,"",{"$nulls":8},{"v":2,"d":"200%"},40]
[null,"I1002","Chemical drums, oil, fuel",{"$nulls":3},{"$f":"SUMIF(Data!$F$2:$F$232,B122,Data!$H$2:$H$232)","v":1},null,null,{"$f":"SUMIF('Historic Data'!$F$2:$F$232,B122,'Historic Data'!$H$2:$H$232)","v":0},null,null,"OK",null,"",{"$nulls":8},{"v":2,"d":"200%"},40]
[null,"I1101","Other electrical",{"$nulls":3},{"$f":"SUMIF(Data!$F$2:$F$232,B123,Data!$H$2:$H$232)","v":4},null,null,{"$f":"SUMIF('Historic Data'!$F$2:$F$232,B123,'Historic Data'!$H$2:$H$232)","v":36},null,null,"OK",null,"",{"$nulls":8},{"v":2,"d":"200%"},40]
[null,"I1102","Other household waste",{"$nulls":3},{"$f":"SUMIF(Data!$F$2:$F$232,B124,Data!$H$2:$H$232)","v":102},null,null,{"$f":"SUMIF('Historic Data'!$F$2:$F$232,B124,'Historic Data'!$H$2:$H$232)","v":104},null,null,"OK",null,"",{"$nulls":8},{"v":2,"d":"200%"},40]
[null,"I1201","Tyres",{"$nulls":3},{"$f":"SUMIF(Data!$F$2:$F$232,B125,Data!$H$2:$H$232)","v":1},null,null,{"$f":"SUMIF('Historic Data'!$F$2:$F$232,B125,'Historic Data'!$H$2:$H$232)","v":0},null,null,"OK",null,"",{"$nulls":8},{"v":2,"d":"200%"},40]
[null,"I1202","Other commercial waste",{"$nulls":3},{"$f":"SUMIF(Data!$F$2:$F$232,B126,Data!$H$2:$H$232)","v":3},null,null,{"$f":"SUMIF('Historic Data'!$F$2:$F$232,B126,'Historic Data'!$H$2:$H$232)","v":21},null,null,"OK",null,"",{"$nulls":8},{"v":2,"d":"200%"},40]
[null,"I1301","Asbestos",{"$nulls":3},{"$f":"SUMIF(Data!$F$2:$F$232,B127,Data!$H$2:$H$232)","v":0},null,null,{"$f":"SUMIF('Historic Data'!$F$2:$F$232,B127,'Historic Data'!$H$2:$H$232)","v":0},null,null,"OK",null,"",{"$nulls":8},{"v":2,"d":"200%"},40]
[null,"I1302","Other (unidentified)",{"$nulls":3},{"$f":"SUMIF(Data!$F$2:$F$232,B128,Data!$H$2:$H$232)","v":0},null,null,{"$f":"SUMIF('Historic Data'!$F$2:$F$232,B128,'Historic Data'!$H$2:$H$232)","v":0},null,null,"OK",null,"",{"$nulls":8},{"v":2,"d":"200%"},40]
[null,"I1401","Clinical",{"$nulls":3},{"$f":"SUMIF(Data!$F$2:$F$232,B129,Data!$H$2:$H$232)","v":0},null,null,{"$f":"SUMIF('Historic Data'!$F$2:$F$232,B129,'Historic Data'!$H$2:$H$232)","v":0},null,null,"OK",null,"",{"$nulls":8},{"v":2,"d":"200%"},40]
[]
[null,null,"Number of incidents by land type"]
[null,"I0201","Highway",{"$nulls":3},{"$f":"SUMIF(Data!$F$2:$F$232,B132,Data!$H$2:$H$232)","v":116},null,null,{"$f":"SUMIF('Historic Data'!$F$2:$F$232,B132,'Historic Data'!$H$2:$H$232)","v":227},null,null,{"$f":"IF(AND(ABS(G132-J132)>X132*J132, ABS(G132-J132)>Y132), \"CHECK\", \"OK\")","v":"OK"},null,{"$f":"IF(M132=\"Check\",\"If you are able to provide any further information about the change in this figure from the previous year please do so in the Comments box of the data entry section of your online return.\",\"\")","v":""},{"$nulls":8},{"v":2,"d":"200%"},40]
[null,"I0301","Footpath / Bridleway",{"$nulls":3},{"$f":"SUMIF(Data!$F$2:$F$232,B133,Data!$H$2:$H$232)","v":11},null,null,{"$f":"SUMIF('Historic Data'!$F$2:$F$232,B133,'Historic Data'!$H$2:$H$232)","v":0},null,null,"OK",null,"",{"$nulls":8},{"v":2,"d":"200%"},40]
[null,"I0401","Back Alley",{"$nulls":3},{"$f":"SUMIF(Data!$F$2:$F$232,B134,Data!$H$2:$H$232)","v":3},null,null,{"$f":"SUMIF('Historic Data'!$F$2:$F$232,B134,'Historic Data'!$H$2:$H$232)","v":0},null,null,"OK",null,"",{"$nulls":8},{"v":2,"d":"200%"},40]
[null,"I0501","Railway",{"$nulls":3},{"$f":"SUMIF(Data!$F$2:$F$232,B135,Data!$H$2:$H$232)","v":0},null,null,{"$f":"SUMIF('Historic Data'!$F$2:$F$232,B135,'Historic Data'!$H$2:$H$232)","v":0},null,null,"OK",null,"",{"$nulls":8},{"v":2,"d":"200%"},40]
[null,"I0601","Council Land",{"$nulls":3},{"$f":"SUMIF(Data!$F$2:$F$232,B136,Data!$H$2:$H$232)","v":1},null,null,{"$f":"SUMIF('Historic Data'!$F$2:$F$232,B136,'Historic Data'!$H$2:$H$232)","v":0},null,null,"OK",null,"",{"$nulls":8},{"v":2,"d":"200%"},40]
[null,"I0202","Agriculture",{"$nulls":3},{"$f":"SUMIF(Data!$F$2:$F$232,B137,Data!$H$2:$H$232)","v":0},null,null,{"$f":"SUMIF('Historic Data'!$F$2:$F$232,B137,'Historic Data'!$H$2:$H$232)","v":0},null,null,"OK",null,"",{"$nulls":8},{"v":2,"d":"200%"},40]
[null,"I0302","Private Residence",{"$nulls":3},{"$f":"SUMIF(Data!$F$2:$F$232,B138,Data!$H$2:$H$232)","v":0},null,null,{"$f":"SUMIF('Historic Data'!$F$2:$F$232,B138,'Historic Data'!$H$2:$H$232)","v":0},null,null,"OK",null,"",{"$nulls":8},{"v":2,"d":"200%"},40]
[null,"I0402","Commercial / Industrial",{"$nulls":3},{"$f":"SUMIF(Data!$F$2:$F$232,B139,Data!$H$2:$H$232)","v":0},null,null,{"$f":"SUMIF('Historic Data'!$F$2:$F$232,B139,'Historic Data'!$H$2:$H$232)","v":0},null,null,"OK",null,"",{"$nulls":8},{"v":2,"d":"200%"},40]
[null,"I0502","Water course / bank",{"$nulls":3},{"$f":"SUMIF(Data!$F$2:$F$232,B140,Data!$H$2:$H$232)","v":0},null,null,{"$f":"SUMIF('Historic Data'!$F$2:$F$232,B140,'Historic Data'!$H$2:$H$232)","v":0},null,null,"OK",null,"",{"$nulls":8},{"v":2,"d":"200%"},40]
[null,"I0602","Other (unidentified)",{"$nulls":3},{"$f":"SUMIF(Data!$F$2:$F$232,B141,Data!$H$2:$H$232)","v":1},null,null,{"$f":"SUMIF('Historic Data'!$F$2:$F$232,B141,'Historic Data'!$H$2:$H$232)","v":0},null,null,"OK",null,"",{"$nulls":8},{"v":2,"d":"200%"},40]
[]
[null,null,"Number of incidents by size "]
[null,"I1501","Single black bag",{"$nulls":3},{"$f":"SUMIF(Data!$F$2:$F$232,B144,Data!$H$2:$H$232)","v":0},null,null,{"$f":"SUMIF('Historic Data'!$F$2:$F$232,B144,'Historic Data'!$H$2:$H$232)","v":0},null,null,{"$f":"IF(AND(ABS(G144-J144)>X144*J144, ABS(G144-J144)>Y144), \"CHECK\", \"OK\")","v":"OK"},null,{"$f":"IF(M144=\"Check\",\"If you are able to provide any further information about the change in this figure from the previous year please do so in the Comments box of the data entry section of your online return.\",\"\")","v":""},{"$nulls":8},{"v":2,"d":"200%"},40]
[null,"I1601","Other single item",{"$nulls":3},{"$f":"SUMIF(Data!$F$2:$F$232,B145,Data!$H$2:$H$232)","v":63},null,null,{"$f":"SUMIF('Historic Data'!$F$2:$F$232,B145,'Historic Data'!$H$2:$H$232)","v":95},null,null,"OK",null,"",{"$nulls":8},{"v":2,"d":"200%"},40]
[null,"I1701","Car boot load or less",{"$nulls":3},{"$f":"SUMIF(Data!$F$2:$F$232,B146,Data!$H$2:$H$232)","v":44},null,null,{"$f":"SUMIF('Historic Data'!$F$2:$F$232,B146,'Historic Data'!$H$2:$H$232)","v":21},null,null,"OK",null,"",{"$nulls":8},{"v":2,"d":"200%"},40]
[null,"I1801","Small van load",{"$nulls":3},{"$f":"SUMIF(Data!$F$2:$F$232,B147,Data!$H$2:$H$232)","v":25},null,null,{"$f":"SUMIF('Historic Data'!$F$2:$F$232,B147,'Historic Data'!$H$2:$H$232)","v":100},null,null,"OK",null,"",{"$nulls":8},{"v":2,"d":"200%"},40]
[null,"I1901","Transit van load",{"$nulls":3},{"$f":"SUMIF(Data!$F$2:$F$232,B148,Data!$H$2:$H$232)","v":0},null,null,{"$f":"SUMIF('Historic Data'!$F$2:$F$232,B148,'Historic Data'!$H$2:$H$232)","v":11},null,null,"OK",null,"",{"$nulls":8},{"v":2,"d":"200%"},40]
[null,"I2001","Tipper lorry  load",{"$nulls":3},{"$f":"SUMIF(Data!$F$2:$F$232,B149,Data!$H$2:$H$232)","v":0},null,null,{"$f":"SUMIF('Historic Data'!$F$2:$F$232,B149,'Historic Data'!$H$2:$H$232)","v":0},null,null,"OK",null,"",{"$nulls":8},{"v":2,"d":"200%"},40]
[null,"I2101","Significant / multiple loads",{"$nulls":3},{"$f":"SUMIF(Data!$F$2:$F$232,B150,Data!$H$2:$H$232)","v":0},null,null,{"$f":"SUMIF('Historic Data'!$F$2:$F$232,B150,'Historic Data'!$H$2:$H$232)","v":0},null,null,"OK",null,"",{"$nulls":8},{"v":2,"d":"200%"},40]
[]
[null,null,"Number of actions "]
[null,"A0101","Investigation",{"$nulls":3},{"$f":"SUMIF(Data!$F$2:$F$232,B153,Data!$H$2:$H$232)","v":5},null,null,{"$f":"SUMIF('Historic Data'!$F$2:$F$232,B153,'Historic Data'!$H$2:$H$232)","v":13},null,null,{"$f":"IF(AND(ABS(G153-J153)>X153*J153, ABS(G153-J153)>Y153), \"CHECK\", \"OK\")","v":"OK"},null,{"$f":"IF(M153=\"Check\",\"If you are able to provide any further information about the change in this figure from the previous year please do so in the Comments box of the data entry section of your online return.\",\"\")","v":""},{"$nulls":8},{"v":1,"d":"100%"},50]
[null,"A0201","Warning letter",{"$nulls":3},{"$f":"SUMIF(Data!$F$2:$F$232,B154,Data!$H$2:$H$232)","v":0},null,null,{"$f":"SUMIF('Historic Data'!$F$2:$F$232,B154,'Historic Data'!$H$2:$H$232)","v":2},null,null,"OK",null,"",{"$nulls":8},{"v":1,"d":"100%"},50]
[null,"A0301","Statutory notice",{"$nulls":3},{"$f":"SUMIF(Data!$F$2:$F$232,B155,Data!$H$2:$H$232)","v":0},null,null,{"$f":"SUMIF('Historic Data'!$F$2:$F$232,B155,'Historic Data'!$H$2:$H$232)","v":0},null,null,"OK",null,"",{"$nulls":8},{"v":1,"d":"100%"},25]
[null,"A0401","Fixed penalty notice",{"$nulls":3},{"$f":"SUM(G63:G66)","v":0},null,null,{"$f":"SUMIF('Historic Data'!$F$2:$F$232,B63,'Historic Data'!$H$2:$H$232)+SUMIF('Historic Data'!$F$2:$F$232,B64,'Historic Data'!$H$2:$H$232)+SUMIF('Historic Data'!$F$2:$F$232,B65,'Historic Data'!$H$2:$H$232)+SUMIF('Historic Data'!$F$2:$F$232,B66,'Historic Data'!$H$2:$H$232)","v":1},null,null,"OK",null,"",{"$nulls":8},{"v":1,"d":"100%"},25]
[null,"A0501","Duty of care inspection",{"$nulls":3},{"$f":"SUMIF(Data!$F$2:$F$232,B157,Data!$H$2:$H$232)","v":0},null,null,{"$f":"SUMIF('Historic Data'!$F$2:$F$232,B157,'Historic Data'!$H$2:$H$232)","v":0},null,null,"OK",null,"",{"$nulls":8},{"v":1,"d":"100%"},25]
[null,"A0601","Stop and search",{"$nulls":3},{"$f":"SUMIF(Data!$F$2:$F$232,B158,Data!$H$2:$H$232)","v":0},null,null,{"$f":"SUMIF('Historic Data'!$F$2:$F$232,B158,'Historic Data'!$H$2:$H$232)","v":0},null,null,"OK",null,""]
[null,"A0701","Vehicles seized",{"$nulls":3},{"$f":"SUMIF(Data!$F$2:$F$232,B159,Data!$H$2:$H$232)","v":0},null,null,{"$f":"SUMIF('Historic Data'!$F$2:$F$232,B159,'Historic Data'!$H$2:$H$232)","v":0},null,null,{"$f":"IF(AND(ABS(G159-J159)>X159*J159, ABS(G159-J159)>Y159), \"CHECK\", \"OK\")","v":"OK"},null,"",{"$nulls":8},{"v":1,"d":"100%"},25]
[null,"A0801","Formal Caution",{"$nulls":3},{"$f":"SUMIF(Data!$F$2:$F$232,B160,Data!$H$2:$H$232)","v":0},null,null,{"$f":"SUMIF('Historic Data'!$F$2:$F$232,B160,'Historic Data'!$H$2:$H$232)","v":0},null,null,"OK",null,""]
[null,"A0901","Prosecution",{"$nulls":3},{"$f":"SUMIF(Data!$F$2:$F$232,B161,Data!$H$2:$H$232)","v":0},null,null,{"$f":"SUMIF('Historic Data'!$F$2:$F$232,B161,'Historic Data'!$H$2:$H$232)","v":0},null,null,{"$f":"IF(AND(ABS(G161-J161)>X161*J161, ABS(G161-J161)>Y161), \"CHECK\", \"OK\")","v":"OK"},null,"",{"$nulls":8},{"v":0.25,"d":"25%"},10]
[null,"A1001","Injunction",{"$nulls":3},{"$f":"SUMIF(Data!$F$2:$F$232,B162,Data!$H$2:$H$232)","v":0},null,null,{"$f":"SUMIF('Historic Data'!$F$2:$F$232,B162,'Historic Data'!$H$2:$H$232)","v":0},null,null,"OK",null,""]
[]
[null,null,"Number of prosecution outcomes"]
[]
[null,"A1101","Absolute/conditional discharge",{"$nulls":3},{"$f":"SUMIF(Data!$F$2:$F$232,B166,Data!$H$2:$H$232)","v":0},null,null,{"$f":"SUMIF('Historic Data'!$F$2:$F$232,B166,'Historic Data'!$H$2:$H$232)","v":0},null,null,"OK",null,{"$f":"IF(M166=\"Check\",\"The Year to year comparison shows that there is more than a 25% difference in the number of incidents with a primary waste type of \"&C166&\". Can you provide a reason for this?\",\"\")","v":""}]
[null,"A1201","Community service",{"$nulls":3},{"$f":"SUMIF(Data!$F$2:$F$232,B167,Data!$H$2:$H$232)","v":0},null,null,{"$f":"SUMIF('Historic Data'!$F$2:$F$232,B167,'Historic Data'!$H$2:$H$232)","v":0},null,null,"OK",null,""]
[null,"A1301","Fine",{"$nulls":3},{"$f":"SUMIF(Data!$F$2:$F$232,B168,Data!$H$2:$H$232)","v":0},null,null,{"$f":"SUMIF('Historic Data'!$F$2:$F$232,B168,'Historic Data'!$H$2:$H$232)","v":0},null,null,{"$f":"IF(AND(ABS(G168-J168)>X168*J168, ABS(G168-J168)>Y168), \"CHECK\", \"OK\")","v":"OK"},null,"",{"$nulls":8},{"v":1,"d":"100%"},25]
[null,"A1401","Paid fixed penalty notice",{"$nulls":3},{"$f":"SUMIF(Data!$F$2:$F$232,B169,Data!$H$2:$H$232)","v":0},null,null,{"$f":"SUMIF('Historic Data'!$F$2:$F$232,B169,'Historic Data'!$H$2:$H$232)","v":1},null,null,"OK",null,"",{"$nulls":8},{"v":1,"d":"100%"},25]
[null,"A1102","Custodial sentence",{"$nulls":3},{"$f":"SUMIF(Data!$F$2:$F$232,B170,Data!$H$2:$H$232)","v":0},null,null,{"$f":"SUMIF('Historic Data'!$F$2:$F$232,B170,'Historic Data'!$H$2:$H$232)","v":0},null,null,"OK",null,""]
[null,"A1202","Cases Lost",{"$nulls":3},{"$f":"SUMIF(Data!$F$2:$F$232,B171,Data!$H$2:$H$232)","v":0},null,null,{"$f":"SUMIF('Historic Data'!$F$2:$F$232,B171,'Historic Data'!$H$2:$H$232)","v":0},null,null,"OK",null,""]
[null,"A1302","Other (successful)",{"$nulls":3},{"$f":"SUMIF(Data!$F$2:$F$232,B172,Data!$H$2:$H$232)","v":0},null,null,{"$f":"SUMIF('Historic Data'!$F$2:$F$232,B172,'Historic Data'!$H$2:$H$232)","v":0},null,null,"OK",null,""]

{"sheet":"Data","index":1,"n_rows":98,"n_cols":8,"rows_kept":98}
["AuthorityId","Authority","PeriodId","Period","Section","DataPointId","Item","Value"]
[27,"Hastings Borough Council",330,"Oct 20","Number and estimated cost of actions taken this period","A0101","Investigation",1]
[27,"Hastings Borough Council",330,"Oct 20","Number and estimated cost of actions taken this period","A0102","Investigation - cost per incident",33]
[27,"Hastings Borough Council",330,"Oct 20","Number and estimated cost of actions taken this period","A0202","Warning letter - cost per incident",33]
[27,"Hastings Borough Council",330,"Oct 20","Number and estimated cost of actions taken this period","A0302","Statutory notice - cost per incident",33]
[27,"Hastings Borough Council",330,"Oct 20","Number and estimated cost of actions taken this period","A0402","Fixed penalty notice - cost per incident",33]
[27,"Hastings Borough Council",330,"Oct 20","Number and estimated cost of actions taken this period","A0502","Duty of care inspection - cost per incident",33]
[27,"Hastings Borough Council",330,"Oct 20","Number and estimated cost of actions taken this period","A0602","Stop and search - cost per incident",324]
[27,"Hastings Borough Council",330,"Oct 20","Number and estimated cost of actions taken this period","A0702","Vehicles seized - cost per incident",33]
[27,"Hastings Borough Council",330,"Oct 20","Number and estimated cost of actions taken this period","A0802","Formal Caution - cost per incident",33]
[27,"Hastings Borough Council",330,"Oct 20","Number and estimated cost of actions taken this period","A2001","No actions taken this period",0]
[27,"Hastings Borough Council",330,"Oct 20","Number and estimated cost of actions taken this period","A2102","Fixed penalty notices issued specifically for fly-tipping (s33Za of the Environmental Protection Act 1990) - cost per incident",33]
[27,"Hastings Borough Council",330,"Oct 20","Number and estimated cost of actions taken this period","A2202","Littering fixed penalty notices issued in conjunction with fly-tipping (s88 of the Environmental Protection Act 1990) - cost per incident",33]
[27,"Hastings Borough Council",330,"Oct 20","Number and estimated cost of actions taken this period","A2302","All other fixed penalty notices issued - cost per incident",33]
[27,"Hastings Borough Council",330,"Oct 20","Number and estimated cost of actions taken this period","A2402","Fixed Penalty Notices issued for Household Duty of Care - cost per incident",33]
[27,"Hastings Borough Council",330,"Oct 20","Please select the description that best describes the coverage of your reporting of Fly tipping incidents and actions: ","G0101","General",1]
[27,"Hastings Borough Council",330,"Oct 20","Total incidents","I0101","Total number of incidents this period",55]
[27,"Hastings Borough Council",330,"Oct 20","Number of incidents by land type","I0201","Highway",46]
[27,"Hastings Borough Council",330,"Oct 20","Number of incidents by land type","I0301","Footpath / Bridleway",4]
[27,"Hastings Borough Council",330,"Oct 20","Number of incidents by land type","I0401","Back Alley",3]
[27,"Hastings Borough Council",330,"Oct 20","Number of incidents by land type","I0601","Council Land",1]
[27,"Hastings Borough Council",330,"Oct 20","Number of incidents by land type","I0602","Other (unidentified)",1]
[27,"Hastings Borough Council",330,"Oct 20","Number of incidents by primary waste type","I0702","Construction / demolition / excavation",3]
[27,"Hastings Borough Council",330,"Oct 20","Number of incidents by primary waste type","I0801","Green",2]
[27,"Hastings Borough Council",330,"Oct 20","Number of incidents by primary waste type","I1001","White goods",4]
[27,"Hastings Borough Council",330,"Oct 20","Number of incidents by primary waste type","I1002","Chemical drums, oil, fuel",1]
[27,"Hastings Borough Council",330,"Oct 20","Number of incidents by primary waste type","I1101","Other electrical",2]
[27,"Hastings Borough Council",330,"Oct 20","Number of incidents by primary waste type","I1102","Other household waste",41]
[27,"Hastings Borough Council",330,"Oct 20","Number of incidents by primary waste type","I1202","Other commercial waste",2]
[27,"Hastings Borough Council",330,"Oct 20","Number of incidents by size and estimated clearance and disposal","I1502","Single black bag - cost per incident",7]
[27,"Hastings Borough Council",330,"Oct 20","Number of incidents by size and estimated clearance and disposal","I1601","Other single item",29]
[27,"Hastings Borough Council",330,"Oct 20","Number of incidents by size and estimated clearance and disposal","I1602","Other single item - cost per incident",29]
[27,"Hastings Borough Council",330,"Oct 20","Number of incidents by size and estimated clearance and disposal","I1701","Car boot load or less",20]
[27,"Hastings Borough Council",330,"Oct 20","Number of incidents by size and estimated clearance and disposal","I1702","Car boot load or less - cost per incident",29]
[27,"Hastings Borough Council",330,"Oct 20","Number of incidents by size and estimated clearance and disposal","I1801","Small van load",6]
[27,"Hastings Borough Council",330,"Oct 20","Number of incidents by size and estimated clearance and disposal","I1802","Small van load - cost per incident",56]
[27,"Hastings Borough Council",330,"Oct 20","Number of incidents by size and estimated clearance and disposal","I1902","Transit van load - cost per incident",115]
[27,"Hastings Borough Council",331,"Nov 20","Number and estimated cost of actions taken this period","A0101","Investigation",1]
[27,"Hastings Borough Council",331,"Nov 20","Number and estimated cost of actions taken this period","A0102","Investigation - cost per incident",33]
[27,"Hastings Borough Council",331,"Nov 20","Number and estimated cost of actions taken this period","A0202","Warning letter - cost per incident",33]
[27,"Hastings Borough Council",331,"Nov 20","Number and estimated cost of actions taken this period","A0302","Statutory notice - cost per incident",33]
[27,"Hastings Borough Council",331,"Nov 20","Number and estimated cost of actions taken this period","A0402","Fixed penalty notice - cost per incident",33]
[27,"Hastings Borough Council",331,"Nov 20","Number and estimated cost of actions taken this period","A0502","Duty of care inspection - cost per incident",33]
[27,"Hastings Borough Council",331,"Nov 20","Number and estimated cost of actions taken this period","A0602","Stop and search - cost per incident",324]
[27,"Hastings Borough Council",331,"Nov 20","Number and estimated cost of actions taken this period","A0702","Vehicles seized - cost per incident",33]
[27,"Hastings Borough Council",331,"Nov 20","Number and estimated cost of actions taken this period","A0802","Formal Caution - cost per incident",33]
[27,"Hastings Borough Council",331,"Nov 20","Number and estimated cost of actions taken this period","A2001","No actions taken this period",0]
[27,"Hastings Borough Council",331,"Nov 20","Number and estimated cost of actions taken this period","A2102","Fixed penalty notices issued specifically for fly-tipping (s33Za of the Environmental Protection Act 1990) - cost per incident",33]
[27,"Hastings Borough Council",331,"Nov 20","Number and estimated cost of actions taken this period","A2202","Littering fixed penalty notices issued in conjunction with fly-tipping (s88 of the Environmental Protection Act 1990) - cost per incident",33]
[27,"Hastings Borough Council",331,"Nov 20","Number and estimated cost of actions taken this period","A2302","All other fixed penalty notices issued - cost per incident",33]
[27,"Hastings Borough Council",331,"Nov 20","Number and estimated cost of actions taken this period","A2402","Fixed Penalty Notices issued for Household Duty of Care - cost per incident",33]
[27,"Hastings Borough Council",331,"Nov 20","Please select the description that best describes the coverage of your reporting of Fly tipping incidents and actions: ","G0101","General",1]
[27,"Hastings Borough Council",331,"Nov 20","Total incidents","I0101","Total number of incidents this period",25]
[27,"Hastings Borough Council",331,"Nov 20","Number of incidents by land type","I0201","Highway",23]
[27,"Hastings Borough Council",331,"Nov 20","Number of incidents by land type","I0301","Footpath / Bridleway",2]
[27,"Hastings Borough Council",331,"Nov 20","Number of incidents by primary waste type","I0702","Construction / demolition / excavation",3]
[27,"Hastings Borough Council",331,"Nov 20","Number of incidents by primary waste type","I1001","White goods",3]
[27,"Hastings Borough Council",331,"Nov 20","Number of incidents by primary waste type","I1102","Other household waste",17]
[27,"Hastings Borough Council",331,"Nov 20","Number of incidents by primary waste type","I1201","Tyres",1]
[27,"Hastings Borough Council",331,"Nov 20","Number of incidents by primary waste type","I1202","Other commercial waste",1]
[27,"Hastings Borough Council",331,"Nov 20","Number of incidents by size and estimated clearance and disposal","I1502","Single black bag - cost per incident",7]
[27,"Hastings Borough Council",331,"Nov 20","Number of incidents by size and estimated clearance and disposal","I1601","Other single item",16]
[27,"Hastings Borough Council",331,"Nov 20","Number of incidents by size and estimated clearance and disposal","I1602","Other single item - cost per incident",29]
[27,"Hastings Borough Council",331,"Nov 20","Number of incidents by size and estimated clearance and disposal","I1701","Car boot load or less",5]
[27,"Hastings Borough Council",331,"Nov 20","Number of incidents by size and estimated clearance and disposal","I1702","Car boot load or less - cost per incident",29]
[27,"Hastings Borough Council",331,"Nov 20","Number of incidents by size and estimated clearance and disposal","I1801","Small van load",4]
[27,"Hastings Borough Council",331,"Nov 20","Number of incidents by size and estimated clearance and disposal","I1802","Small van load - cost per incident",56]
[27,"Hastings Borough Council",331,"Nov 20","Number of incidents by size and estimated clearance and disposal","I1902","Transit van load - cost per incident",115]
[27,"Hastings Borough Council",332,"Dec 20","Number and estimated cost of actions taken this period","A0101","Investigation",3]
[27,"Hastings Borough Council",332,"Dec 20","Number and estimated cost of actions taken this period","A0102","Investigation - cost per incident",33]
[27,"Hastings Borough Council",332,"Dec 20","Number and estimated cost of actions taken this period","A0202","Warning letter - cost per incident",33]
[27,"Hastings Borough Council",332,"Dec 20","Number and estimated cost of actions taken this period","A0302","Statutory notice - cost per incident",33]
[27,"Hastings Borough Council",332,"Dec 20","Number and estimated cost of actions taken this period","A0402","Fixed penalty notice - cost per incident",33]
[27,"Hastings Borough Council",332,"Dec 20","Number and estimated cost of actions taken this period","A0502","Duty of care inspection - cost per incident",33]
[27,"Hastings Borough Council",332,"Dec 20","Number and estimated cost of actions taken this period","A0602","Stop and search - cost per incident",324]
[27,"Hastings Borough Council",332,"Dec 20","Number and estimated cost of actions taken this period","A0702","Vehicles seized - cost per incident",33]
[27,"Hastings Borough Council",332,"Dec 20","Number and estimated cost of actions taken this period","A0802","Formal Caution - cost per incident",33]
[27,"Hastings Borough Council",332,"Dec 20","Number and estimated cost of actions taken this period","A2001","No actions taken this period",0]
[27,"Hastings Borough Council",332,"Dec 20","Number and estimated cost of actions taken this period","A2102","Fixed penalty notices issued specifically for fly-tipping (s33Za of the Environmental Protection Act 1990) - cost per incident",33]
[27,"Hastings Borough Council",332,"Dec 20","Number and estimated cost of actions taken this period","A2202","Littering fixed penalty notices issued in conjunction with fly-tipping (s88 of the Environmental Protection Act 1990) - cost per incident",33]
[27,"Hastings Borough Council",332,"Dec 20","Number and estimated cost of actions taken this period","A2302","All other fixed penalty notices issued - cost per incident",33]
[27,"Hastings Borough Council",332,"Dec 20","Number and estimated cost of actions taken this period","A2402","Fixed Penalty Notices issued for Household Duty of Care - cost per incident",33]
[27,"Hastings Borough Council",332,"Dec 20","Please select the description that best describes the coverage of your reporting of Fly tipping incidents and actions: ","G0101","General",1]
[27,"Hastings Borough Council",332,"Dec 20","Total incidents","I0101","Total number of incidents this period",52]
[27,"Hastings Borough Council",332,"Dec 20","Number of incidents by land type","I0201","Highway",47]
[27,"Hastings Borough Council",332,"Dec 20","Number of incidents by land type","I0301","Footpath / Bridleway",5]
[27,"Hastings Borough Council",332,"Dec 20","Number of incidents by primary waste type","I0702","Construction / demolition / excavation",2]
[27,"Hastings Borough Council",332,"Dec 20","Number of incidents by primary waste type","I1001","White goods",4]
[27,"Hastings Borough Council",332,"Dec 20","Number of incidents by primary waste type","I1101","Other electrical",2]
[27,"Hastings Borough Council",332,"Dec 20","Number of incidents by primary waste type","I1102","Other household waste",44]
[27,"Hastings Borough Council",332,"Dec 20","Number of incidents by size and estimated clearance and disposal","I1502","Single black bag - cost per incident",7]
[27,"Hastings Borough Council",332,"Dec 20","Number of incidents by size and estimated clearance and disposal","I1601","Other single item",18]
[27,"Hastings Borough Council",332,"Dec 20","Number of incidents by size and estimated clearance and disposal","I1602","Other single item - cost per incident",29]
[27,"Hastings Borough Council",332,"Dec 20","Number of incidents by size and estimated clearance and disposal","I1701","Car boot load or less",19]
[27,"Hastings Borough Council",332,"Dec 20","Number of incidents by size and estimated clearance and disposal","I1702","Car boot load or less - cost per incident",29]
[27,"Hastings Borough Council",332,"Dec 20","Number of incidents by size and estimated clearance and disposal","I1801","Small van load",15]
[27,"Hastings Borough Council",332,"Dec 20","Number of incidents by size and estimated clearance and disposal","I1802","Small van load - cost per incident",56]
[27,"Hastings Borough Council",332,"Dec 20","Number of incidents by size and estimated clearance and disposal","I1902","Transit van load - cost per incident",115]

{"sheet":"Historic Data","index":2,"n_rows":104,"n_cols":8,"rows_kept":104}
["AuthorityId","Authority","PeriodId","Period","Section","DataPointId","Item","Value"]
[27,"Hastings Borough Council",312,"Oct 19","Number and estimated cost of actions taken this period","A0101","Investigation",6]
[27,"Hastings Borough Council",312,"Oct 19","Number and estimated cost of actions taken this period","A0102","Investigation - cost per incident",33]
[27,"Hastings Borough Council",312,"Oct 19","Number and estimated cost of actions taken this period","A0201","Warning letter",1]
[27,"Hastings Borough Council",312,"Oct 19","Number and estimated cost of actions taken this period","A0202","Warning letter - cost per incident",33]
[27,"Hastings Borough Council",312,"Oct 19","Number and estimated cost of actions taken this period","A0302","Statutory notice - cost per incident",33]
[27,"Hastings Borough Council",312,"Oct 19","Number and estimated cost of actions taken this period","A0402","Fixed penalty notice - cost per incident",33]
[27,"Hastings Borough Council",312,"Oct 19","Number and estimated cost of actions taken this period","A0502","Duty of care inspection - cost per incident",33]
[27,"Hastings Borough Council",312,"Oct 19","Number and estimated cost of actions taken this period","A0602","Stop and search - cost per incident",324]
[27,"Hastings Borough Council",312,"Oct 19","Number and estimated cost of actions taken this period","A0702","Vehicles seized - cost per incident",33]
[27,"Hastings Borough Council",312,"Oct 19","Number and estimated cost of actions taken this period","A0802","Formal Caution - cost per incident",33]
[27,"Hastings Borough Council",312,"Oct 19","Number of prosecution outcomes","A1301","Fine",0]
[27,"Hastings Borough Council",312,"Oct 19","Number of prosecution outcomes","A1401","Paid fixed penalty notice",1]
[27,"Hastings Borough Council",312,"Oct 19","Number and estimated cost of actions taken this period","A2001","No actions taken this period",0]
[27,"Hastings Borough Council",312,"Oct 19","Number and estimated cost of actions taken this period","A2101","Fixed penalty notices issued specifically for fly-tipping (s33Za of the Environmental Protection Act 1990)",1]
[27,"Hastings Borough Council",312,"Oct 19","Number and estimated cost of actions taken this period","A2102","Fixed penalty notices issued specifically for fly-tipping (s33Za of the Environmental Protection Act 1990) - cost per incident",33]
[27,"Hastings Borough Council",312,"Oct 19","Number and estimated cost of actions taken this period","A2202","Littering fixed penalty notices issued in conjunction with fly-tipping (s88 of the Environmental Protection Act 1990) - cost per incident",33]
[27,"Hastings Borough Council",312,"Oct 19","Number and estimated cost of actions taken this period","A2302","All other fixed penalty notices issued - cost per incident",33]
[27,"Hastings Borough Council",312,"Oct 19","Number and estimated cost of actions taken this period","A2402","Fixed Penalty Notices issued for Household Duty of Care - cost per incident",33]
[27,"Hastings Borough Council",312,"Oct 19","Please select the description that best describes the coverage of your reporting of Fly tipping incidents and actions: ","G0101","General",1]
[27,"Hastings Borough Council",312,"Oct 19","Total incidents","I0101","Total number of incidents this period",71]
[27,"Hastings Borough Council",312,"Oct 19","Number of incidents by land type","I0201","Highway",71]
[27,"Hastings Borough Council",312,"Oct 19","Number of incidents by primary waste type","I0702","Construction / demolition / excavation",5]
[27,"Hastings Borough Council",312,"Oct 19","Number of incidents by primary waste type","I0801","Green",3]
[27,"Hastings Borough Council",312,"Oct 19","Number of incidents by primary waste type","I0902","Black bags - household",13]
[27,"Hastings Borough Council",312,"Oct 19","Number of incidents by primary waste type","I1001","White goods",3]
[27,"Hastings Borough Council",312,"Oct 19","Number of incidents by primary waste type","I1101","Other electrical",11]
[27,"Hastings Borough Council",312,"Oct 19","Number of incidents by primary waste type","I1102","Other household waste",29]
[27,"Hastings Borough Council",312,"Oct 19","Number of incidents by primary waste type","I1202","Other commercial waste",7]
[27,"Hastings Borough Council",312,"Oct 19","Number of incidents by size and estimated clearance and disposal","I1502","Single black bag - cost per incident",7]
[27,"Hastings Borough Council",312,"Oct 19","Number of incidents by size and estimated clearance and disposal","I1601","Other single item",22]
[27,"Hastings Borough Council",312,"Oct 19","Number of incidents by size and estimated clearance and disposal","I1602","Other single item - cost per incident",29]
[27,"Hastings Borough Council",312,"Oct 19","Number of incidents by size and estimated clearance and disposal","I1701","Car boot load or less",7]
[27,"Hastings Borough Council",312,"Oct 19","Number of incidents by size and estimated clearance and disposal","I1702","Car boot load or less - cost per incident",29]
[27,"Hastings Borough Council",312,"Oct 19","Number of incidents by size and estimated clearance and disposal","I1801","Small van load",39]
[27,"Hastings Borough Council",312,"Oct 19","Number of incidents by size and estimated clearance and disposal","I1802","Small van load - cost per incident",56]
[27,"Hastings Borough Council",312,"Oct 19","Number of incidents by size and estimated clearance and disposal","I1901","Transit van load",3]
[27,"Hastings Borough Council",312,"Oct 19","Number of incidents by size and estimated clearance and disposal","I1902","Transit van load - cost per incident",115]
[27,"Hastings Borough Council",313,"Nov 19","Number and estimated cost of actions taken this period","A0101","Investigation",4]
[27,"Hastings Borough Council",313,"Nov 19","Number and estimated cost of actions taken this period","A0102","Investigation - cost per incident",33]
[27,"Hastings Borough Council",313,"Nov 19","Number and estimated cost of actions taken this period","A0201","Warning letter",1]
[27,"Hastings Borough Council",313,"Nov 19","Number and estimated cost of actions taken this period","A0202","Warning letter - cost per incident",33]
[27,"Hastings Borough Council",313,"Nov 19","Number and estimated cost of actions taken this period","A0302","Statutory notice - cost per incident",33]
[27,"Hastings Borough Council",313,"Nov 19","Number and estimated cost of actions taken this period","A0402","Fixed penalty notice - cost per incident",33]
[27,"Hastings Borough Council",313,"Nov 19","Number and estimated cost of actions taken this period","A0502","Duty of care inspection - cost per incident",33]
[27,"Hastings Borough Council",313,"Nov 19","Number and estimated cost of actions taken this period","A0602","Stop and search - cost per incident",324]
[27,"Hastings Borough Council",313,"Nov 19","Number and estimated cost of actions taken this period","A0702","Vehicles seized - cost per incident",33]
[27,"Hastings Borough Council",313,"Nov 19","Number and estimated cost of actions taken this period","A0802","Formal Caution - cost per incident",33]
[27,"Hastings Borough Council",313,"Nov 19","Number and estimated cost of actions taken this period","A2001","No actions taken this period",0]
[27,"Hastings Borough Council",313,"Nov 19","Number and estimated cost of actions taken this period","A2102","Fixed penalty notices issued specifically for fly-tipping (s33Za of the Environmental Protection Act 1990) - cost per incident",33]
[27,"Hastings Borough Council",313,"Nov 19","Number and estimated cost of actions taken this period","A2202","Littering fixed penalty notices issued in conjunction with fly-tipping (s88 of the Environmental Protection Act 1990) - cost per incident",33]
[27,"Hastings Borough Council",313,"Nov 19","Number and estimated cost of actions taken this period","A2302","All other fixed penalty notices issued - cost per incident",33]
[27,"Hastings Borough Council",313,"Nov 19","Number and estimated cost of actions taken this period","A2402","Fixed Penalty Notices issued for Household Duty of Care - cost per incident",33]
[27,"Hastings Borough Council",313,"Nov 19","Please select the description that best describes the coverage of your reporting of Fly tipping incidents and actions: ","G0101","General",1]
[27,"Hastings Borough Council",313,"Nov 19","Total incidents","I0101","Total number of incidents this period",84]
[27,"Hastings Borough Council",313,"Nov 19","Number of incidents by land type","I0201","Highway",84]
[27,"Hastings Borough Council",313,"Nov 19","Number of incidents by primary waste type","I0702","Construction / demolition / excavation",5]
[27,"Hastings Borough Council",313,"Nov 19","Number of incidents by primary waste type","I0801","Green",3]
[27,"Hastings Borough Council",313,"Nov 19","Number of incidents by primary waste type","I1001","White goods",12]
[27,"Hastings Borough Council",313,"Nov 19","Number of incidents by primary waste type","I1101","Other electrical",12]
[27,"Hastings Borough Council",313,"Nov 19","Number of incidents by primary waste type","I1102","Other household waste",45]
[27,"Hastings Borough Council",313,"Nov 19","Number of incidents by primary waste type","I1202","Other commercial waste",7]
[27,"Hastings Borough Council",313,"Nov 19","Number of incidents by size and estimated clearance and disposal","I1502","Single black bag - cost per incident",7]
[27,"Hastings Borough Council",313,"Nov 19","Number of incidents by size and estimated clearance and disposal","I1601","Other single item",41]
[27,"Hastings Borough Council",313,"Nov 19","Number of incidents by size and estimated clearance and disposal","I1602","Other single item - cost per incident",29]
[27,"Hastings Borough Council",313,"Nov 19","Number of incidents by size and estimated clearance and disposal","I1701","Car boot load or less",7]
[27,"Hastings Borough Council",313,"Nov 19","Number of incidents by size and estimated clearance and disposal","I1702","Car boot load or less - cost per incident",29]
[27,"Hastings Borough Council",313,"Nov 19","Number of incidents by size and estimated clearance and disposal","I1801","Small van load",34]
[27,"Hastings Borough Council",313,"Nov 19","Number of incidents by size and estimated clearance and disposal","I1802","Small van load - cost per incident",56]
[27,"Hastings Borough Council",313,"Nov 19","Number of incidents by size and estimated clearance and disposal","I1901","Transit van load",2]
[27,"Hastings Borough Council",313,"Nov 19","Number of incidents by size and estimated clearance and disposal","I1902","Transit van load - cost per incident",115]
[27,"Hastings Borough Council",314,"Dec 19","Number and estimated cost of actions taken this period","A0101","Investigation",3]
[27,"Hastings Borough Council",314,"Dec 19","Number and estimated cost of actions taken this period","A0102","Investigation - cost per incident",33]
[27,"Hastings Borough Council",314,"Dec 19","Number and estimated cost of actions taken this period","A0202","Warning letter - cost per incident",33]
[27,"Hastings Borough Council",314,"Dec 19","Number and estimated cost of actions taken this period","A0302","Statutory notice - cost per incident",33]
[27,"Hastings Borough Council",314,"Dec 19","Number and estimated cost of actions taken this period","A0402","Fixed penalty notice - cost per incident",33]
[27,"Hastings Borough Council",314,"Dec 19","Number and estimated cost of actions taken this period","A0502","Duty of care inspection - cost per incident",33]
[27,"Hastings Borough Council",314,"Dec 19","Number and estimated cost of actions taken this period","A0602","Stop and search - cost per incident",324]
[27,"Hastings Borough Council",314,"Dec 19","Number and estimated cost of actions taken this period","A0702","Vehicles seized - cost per incident",33]
[27,"Hastings Borough Council",314,"Dec 19","Number and estimated cost of actions taken this period","A0802","Formal Caution - cost per incident",33]
[27,"Hastings Borough Council",314,"Dec 19","Number and estimated cost of actions taken this period","A2001","No actions taken this period",0]
[27,"Hastings Borough Council",314,"Dec 19","Number and estimated cost of actions taken this period","A2102","Fixed penalty notices issued specifically for fly-tipping (s33Za of the Environmental Protection Act 1990) - cost per incident",33]
[27,"Hastings Borough Council",314,"Dec 19","Number and estimated cost of actions taken this period","A2202","Littering fixed penalty notices issued in conjunction with fly-tipping (s88 of the Environmental Protection Act 1990) - cost per incident",33]
[27,"Hastings Borough Council",314,"Dec 19","Number and estimated cost of actions taken this period","A2302","All other fixed penalty notices issued - cost per incident",33]
[27,"Hastings Borough Council",314,"Dec 19","Number and estimated cost of actions taken this period","A2402","Fixed Penalty Notices issued for Household Duty of Care - cost per incident",33]
[27,"Hastings Borough Council",314,"Dec 19","Please select the description that best describes the coverage of your reporting of Fly tipping incidents and actions: ","G0101","General",1]
[27,"Hastings Borough Council",314,"Dec 19","Total incidents","I0101","Total number of incidents this period",72]
[27,"Hastings Borough Council",314,"Dec 19","Number of incidents by land type","I0201","Highway",72]
[27,"Hastings Borough Council",314,"Dec 19","Number of incidents by primary waste type","I0702","Construction / demolition / excavation",5]
[27,"Hastings Borough Council",314,"Dec 19","Number of incidents by primary waste type","I0801","Green",3]
[27,"Hastings Borough Council",314,"Dec 19","Number of incidents by primary waste type","I0802","Black bags - commercial",2]
[27,"Hastings Borough Council",314,"Dec 19","Number of incidents by primary waste type","I1001","White goods",12]
[27,"Hastings Borough Council",314,"Dec 19","Number of incidents by primary waste type","I1101","Other electrical",13]
[27,"Hastings Borough Council",314,"Dec 19","Number of incidents by primary waste type","I1102","Other household waste",30]
[27,"Hastings Borough Council",314,"Dec 19","Number of incidents by primary waste type","I1202","Other commercial waste",7]
[27,"Hastings Borough Council",314,"Dec 19","Number of incidents by size and estimated clearance and disposal","I1502","Single black bag - cost per incident",7]
[27,"Hastings Borough Council",314,"Dec 19","Number of incidents by size and estimated clearance and disposal","I1601","Other single item",32]
[27,"Hastings Borough Council",314,"Dec 19","Number of incidents by size and estimated clearance and disposal","I1602","Other single item - cost per incident",29]
[27,"Hastings Borough Council",314,"Dec 19","Number of incidents by size and estimated clearance and disposal","I1701","Car boot load or less",7]
[27,"Hastings Borough Council",314,"Dec 19","Number of incidents by size and estimated clearance and disposal","I1702","Car boot load or less - cost per incident",29]
[27,"Hastings Borough Council",314,"Dec 19","Number of incidents by size and estimated clearance and disposal","I1801","Small van load",27]
[27,"Hastings Borough Council",314,"Dec 19","Number of incidents by size and estimated clearance and disposal","I1802","Small van load - cost per incident",56]
[27,"Hastings Borough Council",314,"Dec 19","Number of incidents by size and estimated clearance and disposal","I1901","Transit van load",6]
[27,"Hastings Borough Council",314,"Dec 19","Number of incidents by size and estimated clearance and disposal","I1902","Transit van load - cost per incident",115]

{"sheet":"Look-up","index":3,"n_rows":359,"n_cols":4,"rows_kept":359,"hidden":true}
[]
[null,"Period ID","Period","Quarter"]
[null,1,"Jul 2003","Jul 03 - Sep 03"]
[null,2,"Aug 2003","Jul 03 - Sep 03"]
[null,3,"Sep 2003","Jul 03 - Sep 03"]
[null,4,"Oct 2003","Oct 03 - Dec 03"]
[null,5,"Nov 2003","Oct 03 - Dec 03"]
[null,6,"Dec 2003","Oct 03 - Dec 03"]
[null,7,"Jan 2004","Jan 04 - Mar 04"]
[null,8,"Feb 2004","Jan 04 - Mar 04"]
[null,9,"Mar 2004","Jan 04 - Mar 04"]
[null,10,"Apr 2004","Apr 04 - Jun 04"]
[null,11,"May 2004","Apr 04 - Jun 04"]
[null,12,"Jun 2004","Apr 04 - Jun 04"]
[null,13,"Jul 2004","Jul 04 - Sep 04"]
[null,14,"Aug 2004","Jul 04 - Sep 04"]
[null,15,"Sep 2004","Jul 04 - Sep 04"]
[null,16,"Oct 2004","Oct 04 - Dec 04"]
[null,17,"Nov 2004","Oct 04 - Dec 04"]
[null,18,"Dec 2004","Oct 04 - Dec 04"]
[null,19,"Jan 2005","Jan 05 - Mar 05"]
[null,20,"Feb 2005","Jan 05 - Mar 05"]
[null,21,"Mar 2005","Jan 05 - Mar 05"]
[null,22,"Apr 2005","Apr 05 - Jun 05"]
[null,23,"May 2005","Apr 05 - Jun 05"]
[null,24,"Jun 2005","Apr 05 - Jun 05"]
[null,25,"Jul 2005","Jul 05 - Sep 05"]
[null,26,"Aug 2005","Jul 05 - Sep 05"]
[null,27,"Sep 2005","Jul 05 - Sep 05"]
[null,28,"Oct 2005","Oct 05 - Dec 05"]
[null,29,"Nov 2005","Oct 05 - Dec 05"]
[null,30,"Dec 2005","Oct 05 - Dec 05"]
[null,31,"Jul 03 - Sep 03","Jul 03 - Sep 03"]
[null,32,"Oct 03 - Dec 03","Oct 03 - Dec 03"]
[null,33,"Jan 04 - Mar 04","Jan 04 - Mar 04"]
[null,34,"Apr 04 - Jun 04","Apr 04 - Jun 04"]
[null,35,"Jul 04 - Sep 04","Jul 04 - Sep 04"]
[null,36,"Oct 04 - Dec 04","Oct 04 - Dec 04"]
[null,37,"Jan 05 - Mar 05","Jan 05 - Mar 05"]
[null,38,"Apr 05 - Jun 05","Apr 05 - Jun 05"]
[null,39,"Jul 05 - Sep 05","Jul 05 - Sep 05"]
[null,40,"Oct 05 - Dec 05","Oct 05 - Dec 05"]
[null,41,"Apr 03 - Mar 04","Annual period"]
[null,42,"Apr 04 - Mar 05","Annual period"]
[null,43,"Jan 03 - Dec 03","Annual period"]
[null,44,"Jan 04 - Dec 04","Annual period"]
[null,45,"Jan 05 - Dec 05","Annual period"]
[null,46,"Jan 2003","Jan 03 - Mar 03"]
[null,47,"Feb 2003","Jan 03 - Mar 03"]
[null,48,"Mar 2003","Jan 03 - Mar 03"]
[null,49,"Jan 03 - Mar 03","Jan 03 - Mar 03"]
[null,50,"Apr 2003","Apr 03 - Jun 03"]
[null,51,"May 2003","Apr 03 - Jun 03"]
[null,52,"Jun 2003","Apr 03 - Jun 03"]
[null,53,"Apr 03 - Jun 03","Apr 03 - Jun 03"]
[null,54,"Jan 2002","Jan 02 - Mar 02"]
[null,55,"Feb 2002","Jan 02 - Mar 02"]
[null,56,"Mar 2002","Jan 02 - Mar 02"]
[null,57,"Jan 02 - Mar 02","Jan 02 - Mar 02"]
[null,58,"Apr 2002","Apr 02 - Jun 02"]
[null,59,"May 2002","Apr 02 - Jun 02"]
[null,60,"Jun 2002","Apr 02 - Jun 02"]
[null,61,"Apr 02 - Jun 02","Apr 02 - Jun 02"]
[null,62,"Jul 2002","Jul 02 - Sep 02"]
[null,63,"Aug 2002","Jul 02 - Sep 02"]
[null,64,"Sep 2002","Jul 02 - Sep 02"]
[null,65,"Jul 02 - Sep 02","Jul 02 - Sep 02"]
[null,66,"Oct 2002","Oct 02 - Dec 02"]
[null,67,"Nov 2002","Oct 02 - Dec 02"]
[null,68,"Dec 2002","Oct 02 - Dec 02"]
[null,69,"Oct 02 - Dec 02","Oct 02 - Dec 02"]
[null,70,"Apr 02 - Mar 03","Annual period"]
[null,71,"Jan 06 - Mar 06","Jan 06 - Mar 06"]
[null,72,"Jan 2006","Jan 06 - Mar 06"]
[null,73,"Feb 2006","Jan 06 - Mar 06"]
[null,74,"Mar 2006","Jan 06 - Mar 06"]
[null,75,"Apr 06 - Jun 06","Apr 06 - Jun 06"]
[null,76,"Apr 2006","Apr 06 - Jun 06"]
[null,77,"May 2006","Apr 06 - Jun 06"]
[null,78,"Jun 2006","Apr 06 - Jun 06"]
[null,79,"Jul 06 - Sep 06","Jul 06 - Sep 06"]
[null,80,"Jul 2006","Jul 06 - Sep 06"]
[null,81,"Aug 2006","Jul 06 - Sep 06"]
[null,82,"Sep 2006","Jul 06 - Sep 06"]
[null,83,"Oct 06 - Dec 06","Oct 06 - Dec 06"]
[null,84,"Oct 2006","Oct 06 - Dec 06"]
[null,85,"Nov 2006","Oct 06 - Dec 06"]
[null,86,"Dec 2006","Oct 06 - Dec 06"]
[null,87,"Jan 06 - Dec 06","Annual period"]
[null,88,"Apr 05 - Mar 06","Annual period"]
[null,89,"Apr 06 - Mar07","Annual period"]
[null,90,"Jan 2007","Jan 07 - Mar 07"]
[null,91,"Feb 2007","Jan 07 - Mar 07"]
[null,92,"Mar 2007","Jan 07 - Mar 07"]
[null,93,"Jan 07 - Mar 07","Jan 07 - Mar 07"]
[null,94,"Apr 07 - Jun 07","Apr 07 - Jun 07"]
[null,95,"Apr 2007","Apr 07 - Jun 07"]
[null,96,"May 2007","Apr 07 - Jun 07"]
[null,97,"Jun 2007","Apr 07 - Jun 07"]
[null,98,"Jul 07 - Sep 07","Jul 07 - Sep 07"]
[null,99,"Jul 2007","Jul 07 - Sep 07"]
[null,100,"Aug 2007","Jul 07 - Sep 07"]
[null,101,"Sep 2007","Jul 07 - Sep 07"]
[null,102,"Oct 07 - Dec 07","Oct 07 - Dec 07"]
[null,103,"Oct 2007","Oct 07 - Dec 07"]
[null,104,"Nov 2007","Oct 07 - Dec 07"]
[null,105,"Dec 2007","Oct 07 - Dec 07"]
[null,106,"Jan 08 - Mar 08","Jan 08 - Mar 08"]
[null,107,"Jan 2008","Jan 08 - Mar 08"]
[null,108,"Feb 2008","Jan 08 - Mar 08"]
[null,109,"Mar 2008","Jan 08 - Mar 08"]
[null,110,"Apr 08 - Jun 08","Apr 08 - Jun 08"]
[null,111,"Apr 2008","Apr 08 - Jun 08"]
[null,112,"May 2008","Apr 08 - Jun 08"]
[null,113,"Jun 2008","Apr 08 - Jun 08"]
[null,114,"Jul 08 - Sep 08","Jul 08 - Sep 08"]
[null,115,"Jul 2008","Jul 08 - Sep 08"]
[null,116,"Aug 2008","Jul 08 - Sep 08"]
[null,117,"Sep 2008","Jul 08 - Sep 08"]
[null,118,"Apr 07 - Mar 08","Annual period"]
[null,119,"Oct 2008","Oct 08 - Dec 08"]
[null,120,"Nov 2008","Oct 08 - Dec 08"]
[null,121,"Dec 2008","Oct 08 - Dec 08"]
[null,122,"Oct 08 - Dec 08","Oct 08 - Dec 08"]
[null,123,"Jan 2009","Jan 09 - Mar 09"]
[null,124,"Feb 2009","Jan 09 - Mar 09"]
[null,125,"Mar 2009","Jan 09 - Mar 09"]
[null,126,"Jan 09 - Mar 09","Jan 09 - Mar 09"]
[null,127,"Apr 08 - Mar 09","Annual period"]
[null,128,"Apr 2009","Apr 09 - Jun 09"]
[null,129,"May 2009","Apr 09 - Jun 09"]
[null,130,"Jun 2009","Apr 09 - Jun 09"]
[null,131,"Apr 09 - Jun 09","Apr 09 - Jun 09"]
[null,132,"Jul 2009","Jul 09 - Sep 09"]
[null,133,"Aug 2009","Jul 09 - Sep 09"]
[null,134,"Sep 2009","Jul 09 - Sep 09"]
[null,135,"Jul 09 - Sep 09","Jul 09 - Sep 09"]
[null,136,"Oct 2009","Oct 09 - Dec 09"]
[null,137,"Nov 2009","Oct 09 - Dec 09"]
[null,138,"Dec 2009","Oct 09 - Dec 09"]
[null,139,"Oct 09 - Dec 09","Oct 09 - Dec 09"]
[null,140,"Jan 2010","Jan 10 - Mar 10"]
[null,141,"Feb 2010","Jan 10 - Mar 10"]
[null,142,"Mar 2010","Jan 10 - Mar 10"]
[null,143,"Jan 10 - Mar 10","Jan 10 - Mar 10"]
[null,144,"Apr 09 - Mar 10","Annual period"]
[null,145,"Apr 2010","Apr 10 - Jun 10"]
[null,146,"May 2010","Apr 10 - Jun 10"]
[null,147,"Jun 2010","Apr 10 - Jun 10"]
[null,148,"Apr 10 - Jun 10","Apr 10 - Jun 10"]
[null,149,"Jul 2010","Jul 10 - Sep 10"]
[null,150,"Aug 2010","Jul 10 - Sep 10"]
[null,151,"Sep 2010","Jul 10 - Sep 10"]
[null,152,"Jul 10 - Sep 10","Jul 10 - Sep 10"]
[null,153,"Oct 2010","Oct 10 - Dec 10"]
[null,154,"Nov 2010","Oct 10 - Dec 10"]
[null,155,"Dec 2010","Oct 10 - Dec 10"]
[null,156,"Oct 10 - Dec 10","Oct 10 - Dec 10"]
[null,157,"Jan 2011","Jan 11 - Mar 11"]
[null,158,"Feb 2011","Jan 11 - Mar 11"]
[null,159,"Mar 2011","Jan 11 - Mar 11"]
[null,160,"Jan 11 - Mar 11","Jan 11 - Mar 11"]
[null,161,"Apr 10 - Mar 11","Annual period"]
[null,162,"Apr 2011","Apr 11 - Jun 11"]
[null,163,"May 2011","Apr 11 - Jun 11"]
[null,164,"Jun 2011","Apr 11 - Jun 11"]
[null,165,"Apr 11 - Jun 11","Apr 11 - Jun 11"]
[null,166,"Jul 2011","Jul 11 - Sep 11"]
[null,167,"Aug 2011","Jul 11 - Sep 11"]
[null,168,"Sep 2011","Jul 11 - Sep 11"]
[null,169,"Jul 11 - Sep 11","Jul 11 - Sep 11"]
[null,170,"Oct 2011","Oct 11 - Dec 11"]
[null,171,"Nov 2011","Oct 11 - Dec 11"]
[null,172,"Dec 2011","Oct 11 - Dec 11"]
[null,173,"Oct 11 - Dec 11","Oct 11 - Dec 11"]
[null,174,"Jan 2012","Jan 12 - Mar 12"]
[null,175,"Feb 2012","Jan 12 - Mar 12"]
[null,176,"Mar 2012","Jan 12 - Mar 12"]
[null,177,"Jan 12 - Mar 12","Jan 12 - Mar 12"]
[null,178,"Apr 11 - Mar 12","Annual period"]
[null,179,"Apr 2012","Apr 12 - Jun 12"]
[null,180,"May 2012","Apr 12 - Jun 12"]
[null,181,"Jun 2012","Apr 12 - Jun 12"]
[null,182,"Apr 12 - Jun 12","Apr 12 - Jun 12"]
[null,183,"Jul 2012","Jul 12 - Sep 12"]
[null,184,"Aug 2012","Jul 12 - Sep 12"]
[null,185,"Sep 2012","Jul 12 - Sep 12"]
[null,186,"Jul 12 - Sep 12","Jul 12 - Sep 12"]
[null,187,"Oct 2012","Oct 12 - Dec 12"]
[null,188,"Nov 2012","Oct 12 - Dec 12"]
[null,189,"Dec 2012","Oct 12 - Dec 12"]
[null,190,"Oct 12 - Dec 12","Oct 12 - Dec 12"]
[null,191,"Jan 2013","Jan 13 - Mar 13"]
[null,192,"Feb 2013","Jan 13 - Mar 13"]
[null,193,"Mar 2013","Jan 13 - Mar 13"]
[null,194,"Jan 13 - Mar 13","Jan 13 - Mar 13"]
[null,195,"Apr 12 - Mar 13","Annual period"]
[null,196,"Apr 2013","Apr 13 - Jun 13"]
[null,197,"May 2013","Apr 13 - Jun 13"]
[null,198,"Jun 2013","Apr 13 - Jun 13"]
[null,199,"Apr 13 - Jun 13","Apr 13 - Jun 13"]
[null,200,"Jul 2013","Jul 13 - Sep 13"]
[null,201,"Aug 2013","Jul 13 - Sep 13"]
[null,202,"Sep 2013","Jul 13 - Sep 13"]
[null,203,"Jul 13 - Sep 13","Jul 13 - Sep 13"]
[null,204,"Oct 2013","Oct 13 - Dec 13"]
[null,205,"Nov 2013","Oct 13 - Dec 13"]
[null,206,"Dec 2013","Oct 13 - Dec 13"]
[null,207,"Oct 13 - Dec 13","Oct 13 - Dec 13"]
[null,208,"Jan 2014","Jan 14 - Mar 14"]
[null,209,"Feb 2014","Jan 14 - Mar 14"]
[null,210,"Mar 2014","Jan 14 - Mar 14"]
[null,211,"Jan 14 - Mar 14","Jan 14 - Mar 14"]
[null,212,"Apr 13 - Mar 14","Annual period"]
[null,213,"Apr 2014","Apr 14 - Jun 14"]
[null,214,"May 2014","Apr 14 - Jun 14"]
[null,215,"Jun 2014","Apr 14 - Jun 14"]
[null,216,"Apr 14 - Jun 14","Apr 14 - Jun 14"]
[null,217,"Jul 2014","Jul 14 - Sep 14"]
[null,218,"Aug 2014","Jul 14 - Sep 14"]
[null,219,"Sep 2014","Jul 14 - Sep 14"]
[null,220,"Jul 14 - Sep 14","Jul 14 - Sep 14"]
[null,221,"Oct 2014","Oct 14 - Dec 14"]
[null,222,"Nov 2014","Oct 14 - Dec 14"]
[null,223,"Dec 2014","Oct 14 - Dec 14"]
[null,224,"Oct 14 - Dec 14","Oct 14 - Dec 14"]
[null,225,"Jan 2015","Jan 15 - Mar 15"]
[null,226,"Feb 2015","Jan 15 - Mar 15"]
[null,227,"Mar 2015","Jan 15 - Mar 15"]
[null,228,"Jan 15 - Mar 15","Jan 15 - Mar 15"]
[null,229,"Apr 14 - Mar 15","Annual period"]
[null,230,"Jan 14 - Dec 14","Annual period"]
[null,231,"Jan 13 - Dec 13","Annual period"]
[null,232,"Apr 2015","Apr 15 - Jun 15"]
[null,233,"May 2015","Apr 15 - Jun 15"]
[null,234,"Jun 2015","Apr 15 - Jun 15"]
[null,235,"Apr 15 - Jun 15","Apr 15 - Jun 15"]
[null,236,"Jul 2015","Jul 15 - Sep 15"]
[null,237,"Aug 2015","Jul 15 - Sep 15"]
[null,238,"Sep 2015","Jul 15 - Sep 15"]
[null,239,"Jul 15 - Sep 15","Jul 15 - Sep 15"]
[null,240,"Oct 2015","Oct 15 - Dec 15"]
[null,241,"Nov 2015","Oct 15 - Dec 15"]
[null,242,"Dec 2015","Oct 15 - Dec 15"]
[null,243,"Oct 15 - Dec 15","Oct 15 - Dec 15"]
[null,244,"Jan 2016","Jan 16 - Mar 16"]
[null,245,"Feb 2016","Jan 16 - Mar 16"]
[null,246,"Mar 2016","Jan 16 - Mar 16"]
[null,247,"Jan 16 - Mar 16","Jan 16 - Mar 16"]
[null,248,"Apr 15 - Mar 16","Annual period"]
[null,249,"Jan 15 - Dec 15","Annual period"]
[null,250,"Apr 2016","Apr 16 - Jun 16"]
[null,251,"May 2016","Apr 16 - Jun 16"]
[null,252,"Jun 2016","Apr 16 - Jun 16"]
[null,253,"Apr 16 - Jun 16","Apr 16 - Jun 16"]
[null,254,"Jul 2016","Jul 16 - Sep 16"]
[null,255,"Aug 2016","Jul 16 - Sep 16"]
[null,256,"Sep 2016","Jul 16 - Sep 16"]
[null,257,"Jul 16 - Sep 16","Jul 16 - Sep 16"]
[null,258,"Oct 2016","Oct 16 - Dec 16"]
[null,259,"Nov 2016","Oct 16 - Dec 16"]
[null,260,"Dec 2016","Oct 16 - Dec 16"]
[null,261,"Oct 16 - Dec 16","Oct 16 - Dec 16"]
[null,262,"Jan 2017","Jan 17 - Mar 17"]
[null,263,"Feb 2017","Jan 17 - Mar 17"]
[null,264,"Mar 2017","Jan 17 - Mar 17"]
[null,265,"Jan 17 - Mar 17","Jan 17 - Mar 17"]
[null,266,"Apr 16 - Mar 17","Annual period"]
[null,267,"Jan 16 - Dec 16","Annual period"]
[null,268,"Apr 2017","Apr 17 - Jun 17"]
[null,269,"May 2017","Apr 17 - Jun 17"]
[null,270,"Jun 2017","Apr 17 - Jun 17"]
[null,271,"Apr 17 - Jun 17","Apr 17 - Jun 17"]
[null,272,"Jul 2017","Jul 17 - Sep 17"]
[null,273,"Aug 2017","Jul 17 - Sep 17"]
[null,274,"Sep 2017","Jul 17 - Sep 17"]
[null,275,"Jul 17 - Sep 17","Jul 17 - Sep 17"]
[null,276,"Oct 2017","Oct 17 - Dec 17"]
[null,277,"Nov 2017","Oct 17 - Dec 17"]
[null,278,"Dec 2017","Oct 17 - Dec 17"]
[null,279,"Oct 17 - Dec 17","Oct 17 - Dec 17"]
[null,280,"Jan 2018","Jan 18 - Mar 18"]
[null,281,"Feb 2018","Jan 18 - Mar 18"]
[null,282,"Mar 2018","Jan 18 - Mar 18"]
[null,283,"Jan 18 - Mar 18","Jan 18 - Mar 18"]
[null,284,"Apr 17 - Mar 18","Annual period"]
[null,285,"Jan 17 - Dec 17","Annual period"]
[null,286,"Apr 2018","Apr 18 - Jun 18"]
[null,287,"May 2018","Apr 18 - Jun 18"]
[null,288,"Jun 2018","Apr 18 - Jun 18"]
[null,289,"Apr 18 - Jun 18","Apr 18 - Jun 18"]
[null,290,"Jul 2018","Jul 18 - Sep 18"]
[null,291,"Aug 2018","Jul 18 - Sep 18"]
[null,292,"Sep 2018","Jul 18 - Sep 18"]
[null,293,"Jul 18 - Sep 18","Jul 18 - Sep 18"]
[null,294,"Oct 2018","Oct 18 - Dec 18"]
[null,295,"Nov 2018","Oct 18 - Dec 18"]
[null,296,"Dec 2018","Oct 18 - Dec 18"]
[null,297,"Oct 18 - Dec 18","Oct 18 - Dec 18"]
[null,298,"Jan 2019","Jan 19 - Mar 19"]
[null,299,"Feb 2019","Jan 19 - Mar 19"]
[null,300,"Mar 2019","Jan 19 - Mar 19"]
[null,301,"Jan 19 - Mar 19","Jan 19 - Mar 19"]
[null,302,"Apr 18 - Mar 19","Annual period"]
[null,303,"Jan 18 - Dec 18","Annual period"]
[null,304,"2019-04-01","Apr 19 - Jun 19"]
[null,305,"2019-05-01","Apr 19 - Jun 19"]
[null,306,"2019-06-01","Apr 19 - Jun 19"]
[null,307,"Apr 19 - Jun 19","Apr 19 - Jun 19"]
[null,308,"2019-07-01","Jul 19 - Sep 19"]
[null,309,"2019-08-01","Jul 19 - Sep 19"]
[null,310,"2019-09-01","Jul 19 - Sep 19"]
[null,311,"Jul 19 - Sep 19","Jul 19 - Sep 19"]
[null,312,"2019-10-01","Oct 19 - Dec 19"]
[null,313,"2019-11-01","Oct 19 - Dec 19"]
[null,314,"2019-12-01","Oct 19 - Dec 19"]
[null,315,"Oct 19 - Dec 19","Oct 19 - Dec 19"]
[null,316,"2020-01-01","Jan 20 - Mar 20"]
[null,317,"2020-02-01","Jan 20 - Mar 20"]
[null,318,"2020-03-01","Jan 20 - Mar 20"]
[null,319,"Jan 20 - Mar 20","Jan 20 - Mar 20"]
[null,320,"Apr 19 - Mar 20","Annual period"]
[null,321,"Jan 19 - Dec 19","Annual period"]
[null,{"$f":"B306+18","v":322},"2020-04-01","Apr 20 - Jun 20"]
[null,323,"2020-05-01","Apr 20 - Jun 20"]
[null,324,"2020-06-01","Apr 20 - Jun 20"]
[null,325,"Apr 20 - Jun 20","Apr 20 - Jun 20"]
[null,326,"2020-07-01","Jul 20 - Sep 20"]
[null,327,"2020-08-01","Jul 20 - Sep 20"]
[null,328,"2020-09-01","Jul 20 - Sep 20"]
[null,329,"Jul 20 - Sep 20","Jul 20 - Sep 20"]
[null,330,"2020-10-01","Oct 20 - Dec 20"]
[null,331,"2020-11-01","Oct 20 - Dec 20"]
[null,332,"2020-12-01","Oct 20 - Dec 20"]
[null,333,"Oct 20 - Dec 20","Oct 20 - Dec 20"]
[null,334,"2021-01-01","Jan 21 - Mar 21"]
[null,335,"2021-02-01","Jan 21 - Mar 21"]
[null,336,"2021-03-01","Jan 21 - Mar 21"]
[null,337,"Jan 21 - Mar 21","Jan 21 - Mar 21"]
[null,338,"Apr 19 - Mar 20","Annual period"]
[null,339,"Jan 20 - Dec 20","Annual period"]
[null,340,"2021-04-01","Apr 21 - Jun 21"]
[null,341,"2021-05-01","Apr 21 - Jun 21"]
[null,342,"2021-06-01","Apr 21 - Jun 21"]
[null,343,"Apr 21 - Jun 21","Apr 21 - Jun 21"]
[null,344,"2021-07-01","Jul 21 - Sep 21"]
[null,345,"2021-08-01","Jul 21 - Sep 21"]
[null,346,"2021-09-01","Jul 21 - Sep 21"]
[null,347,"Jul 21 - Sep 21","Jul 21 - Sep 21"]
[null,348,"2021-10-01","Oct 21 - Dec 21"]
[null,349,"2021-11-01","Oct 21 - Dec 21"]
[null,350,"2021-12-01","Oct 21 - Dec 21"]
[null,351,"Oct 21 - Dec 21","Oct 21 - Dec 21"]
[null,352,"2022-01-01","Jan 22 - Mar 22"]
[null,353,"2022-02-01","Jan 22 - Mar 22"]
[null,354,"2022-03-01","Jan 22 - Mar 22"]
[null,355,"Jan 22 - Mar 22","Jan 22 - Mar 22"]
[null,356,"Apr 21 - Mar 22","Annual period"]
[null,357,"Jan 21 - Dec 21","Annual period"]

{"sheet":"Comments","index":4,"n_rows":1,"n_cols":3,"rows_kept":1}
["Period","(I)ncident or (A)ction","Comment"]